{"text_format":"1","workbook":"xlsx","n_sheets":6,"sheets":["Январь","Февраль","Март","Апрель","ТС","Сотрудники"],"not_rendered":{"charts":0,"images":0,"macros":1,"external_links":1,"defined_names":4,"comments":0,"pivot_tables":0},"unopened":[],"bounds":{"document_bytes":16777216,"sheet_cells":100000,"rows_first":2000,"rows_last":500,"rows_between":2000,"halvings":0,"cell_chars":16384,"cell_head_chars":4096},"cells_cut":0,"cells_raw":0,"read":"whole","date_system":"1900"}

{"sheet":"Январь","index":0,"n_rows":40,"n_cols":26,"rows_kept":40,"cut":false,"hidden":false,"merged":[[1,0,1,15],[2,0,2,15],[3,14,3,15]]}
[null,null,null,null,null,null,null,null,null,null,null,null,null,null,null,"Январь",null,null,null,null,null,null,null,"Экономия","Базовая норма расхода на 100 км","Базовая норма расхода на 1 мото/час"]
["Общество с ограниченной ответственностью  \"Втормет Царицыно\"",null,null,null,null,null,null,null,null,null,null,null,null,null,null,null,null,"1-я пол.","2018-01-01","2018-01-18",350,0,0,0,46.860000000000007,5.5]
["Отчет водителя ломовоза с манипулятором",null,null,null,null,null,null,null,null,null,null,null,null,null,null,null,null,"2-я пол.","2018-01-19","2018-01-31",350,920,0,0]
[null,null,null,null,null,null,null,"за",2018,null,null,null,null,null,"с 504 уо 777",null,null,null,"",null,null,null,"",null,"Зима","Норма 1"]
[]
["Дата","ФИО водителя","Показание одометра машины на начало дня, км","Показание одометра машины на конец дня, км","Пройдено за день, км","Выдано топливо, литр","Остаток топлива в баке на начало дня, литр","Показание счетчика моточасов спецоборудования на начало дня, м/ч","Показание счетчика моточасов  спецоборудования на конец дня, м/ч","Работа спецоборудования за день, м/ч","Количество ходок","Расход топлива на работу спецоборудования, литр","Остаток топлива в баке на конец дня, литр","Расход топлива по норме, литр","Фактический расход топлива, литр","Отклонение от нормы (Перерасход(+), экономия(-)), литр",null,"Дата","Обнуление одометра, км","Пройдено за день, км","Выдано топливо, литр","Обнуление счетчика моточасов спецоборудования, м/ч","Работа спецоборудования за день, м/ч","Расход топлива по норме, литр","Фактический расход топлива, литр","Дата"]
["2018-01-01",null,23190,23190,0,0,350,1306,1306,0,null,0,350,0,0,0,null,"2018-01-01",null,null,null,null,null,null,null,"2018-01-01"]
["2018-01-02",null,23190,23190,0,0,350,1306,1306,0,null,0,350,0,0,0,null,"2018-01-02",null,null,null,null,null,null,null,"2018-01-02"]
["2018-01-03",null,23190,23190,0,0,350,1306,1306,0,null,0,350,0,0,0,null,"2018-01-03",null,null,null,null,null,null,null,"2018-01-03"]
["2018-01-04",null,23190,23190,0,0,350,1306,1306,0,null,0,350,0,0,0,null,"2018-01-04",null,null,null,null,null,null,null,"2018-01-04"]
["2018-01-05",null,23190,23190,0,0,350,1306,1306,0,null,0,350,0,0,0,null,"2018-01-05",null,null,null,null,null,null,null,"2018-01-05"]
["2018-01-06",null,23190,23190,0,0,350,1306,1306,0,null,0,350,0,0,0,null,"2018-01-06",null,null,null,null,null,null,null,"2018-01-06"]
["2018-01-07",null,23190,23190,0,0,350,1306,1306,0,null,0,350,0,0,0,null,"2018-01-07",null,null,null,null,null,null,null,"2018-01-07"]
["2018-01-08",null,23190,23190,0,0,350,1306,1306,0,null,0,350,0,0,0,null,"2018-01-08",null,null,null,null,null,null,null,"2018-01-08"]
["2018-01-09",null,23190,23190,0,0,350,1306,1306,0,null,0,350,0,0,0,null,"2018-01-09",null,null,null,null,null,null,null,"2018-01-09"]
["2018-01-10",null,23190,23190,0,0,350,1306,1306,0,null,0,350,0,0,0,null,"2018-01-10",null,null,null,null,null,null,null,"2018-01-10"]
["2018-01-11",null,23190,23190,0,0,350,1306,1306,0,null,0,350,0,0,0,null,"2018-01-11",null,null,null,null,null,null,null,"2018-01-11"]
["2018-01-12",null,23190,23190,0,0,350,1306,1306,0,null,0,350,0,0,0,null,"2018-01-12",null,null,null,null,null,null,null,"2018-01-12"]
["2018-01-13",null,23190,23190,0,0,350,1306,1306,0,null,0,350,0,0,0,null,"2018-01-13",null,null,null,null,null,null,null,"2018-01-13"]
["2018-01-14",null,23190,23190,0,0,350,1306,1306,0,null,0,350,0,0,0,null,"2018-01-14",null,null,null,null,null,null,null,"2018-01-14"]
["2018-01-15",null,23190,23190,0,0,350,1306,1306,0,null,0,350,0,0,0,null,"2018-01-15",null,null,null,null,null,null,null,"2018-01-15"]
["2018-01-16",null,23190,23190,0,0,350,1306,1306,0,null,0,350,0,0,0,null,"2018-01-16",null,null,null,null,null,null,null,"2018-01-16"]
["2018-01-17",null,23190,23190,0,0,350,1306,1306,0,null,0,350,0,0,0,null,"2018-01-17",null,null,null,null,null,null,null,"2018-01-17"]
["2018-01-18",null,23190,23190,0,0,350,1306,1306,0,null,0,350,0,0,0,null,"2018-01-18",null,null,null,null,null,null,null,"2018-01-18"]
["2018-01-19",null,23190,23190,0,0,350,1306,1306,0,null,0,350,0,0,0,null,"2018-01-19",null,null,null,null,null,null,null,"2018-01-19"]
["2018-01-20",null,23190,23190,0,0,350,1306,1306,0,null,0,350,0,0,0,null,"2018-01-20",null,null,null,null,null,null,null,"2018-01-20"]
["2018-01-21",null,23190,23190,0,0,350,1306,1306,0,null,0,350,0,0,0,null,"2018-01-21",null,null,null,null,null,null,null,"2018-01-21"]
["2018-01-22",null,23190,23190,0,0,350,1306,1306,0,null,0,350,0,0,0,null,"2018-01-22",null,null,null,null,null,null,null,"2018-01-22"]
["2018-01-23",null,23190,23190,0,0,350,1306,1306,0,null,0,350,0,0,0,null,"2018-01-23",null,null,null,null,null,null,null,"2018-01-23"]
["2018-01-24",null,23190,23190,0,280,350,1306,1306,0,null,0,630,0,0,0,null,"2018-01-24",null,null,null,null,null,null,null,"2018-01-24"]
["2018-01-25",null,23190,23190,0,0,630,1306,1306,0,null,0,630,0,0,0,null,"2018-01-25",null,null,null,null,null,null,null,"2018-01-25"]
["2018-01-26",null,23190,23190,0,0,630,1306,1306,0,null,0,630,0,0,0,null,"2018-01-26",null,null,null,null,null,null,null,"2018-01-26"]
["2018-01-27",null,23190,23190,0,310,630,1306,1306,0,null,0,940,0,0,0,null,"2018-01-27",null,null,null,null,null,null,null,"2018-01-27"]
["2018-01-28",null,23190,23190,0,0,940,1306,1306,0,null,0,940,0,0,0,null,"2018-01-28",null,null,null,null,null,null,null,"2018-01-28"]
["2018-01-29",null,23190,23190,0,0,940,1306,1306,0,null,0,940,0,0,0,null,"2018-01-29",null,null,null,null,null,null,null,"2018-01-29"]
["2018-01-30",null,23190,23190,0,280,940,1306,1306,0,null,0,1220,0,0,0,null,"2018-01-30",null,null,null,null,null,null,null,"2018-01-30"]
["2018-01-31",null,23190,23190,0,50,1220,1306,1306,0,null,0,1270,0,0,0,null,"2018-01-31",null,null,null,null,null,null,null,"2018-01-31"]
["Итог",null,null,null,0,920,null,null,null,0,0,0,null,0,0,0,null,"1-я пол.",0,0,0,0,0,0,0,"1-я пол."]
[null,null,null,null,null,null,null,null,null,null,0,null,null,null,null,null,null,"2-я пол.",0,0,0,0,0,0,0,"2-я пол."]
[null,null,null,null,null,null,null,null,null,null,0]

{"sheet":"Февраль","index":1,"n_rows":40,"n_cols":26,"rows_kept":40,"cut":false,"hidden":false,"merged":[[1,0,1,15],[2,0,2,15],[3,14,3,15]]}
[null,null,null,null,null,null,null,null,null,null,null,null,null,null,null,"Февраль",null,null,null,null,null,null,null,"Экономия","Базовая норма расхода на 100 км","Базовая норма расхода на 1 мото/час"]
["Общество с ограниченной ответственностью  \"Втормет Царицыно\"",null,null,null,null,null,null,null,null,null,null,null,null,null,null,null,null,"1-я пол.","2018-02-01","2018-02-15",350,0,0,0,46.860000000000007,5.5]
["Отчет водителя ломовоза с манипулятором",null,null,null,null,null,null,null,null,null,null,null,null,null,null,null,null,"2-я пол.","2018-02-16","2018-02-28",350,810,0,0]
[null,null,null,null,null,null,null,"за",2018,null,null,null,null,null,"с 504 уо 777",null,null,null,"",null,null,null,"",null,"Зима","Норма 1"]
[]
["Дата","ФИО водителя","Показание одометра машины на начало дня, км","Показание одометра машины на конец дня, км","Пройдено за день, км","Выдано топливо, литр","Остаток топлива в баке на начало дня, литр","Показание счетчика моточасов спецоборудования на начало дня, м/ч","Показание счетчика моточасов  спецоборудования на конец дня, м/ч","Работа спецоборудования за день, м/ч","Количество ходок","Расход топлива на работу спецоборудования, литр","Остаток топлива в баке на конец дня, литр","Расход топлива по норме, литр","Фактический расход топлива, литр","Отклонение от нормы (Перерасход(+), экономия(-)), литр",null,"Дата","Обнуление одометра, км","Пройдено за день, км","Выдано топливо, литр","Обнуление счетчика моточасов спецоборудования, м/ч","Работа спецоборудования за день, м/ч","Расход топлива по норме, литр","Фактический расход топлива, литр","Дата"]
["2018-02-01",null,23190,23190,0,0,350,1306,1306,0,null,0,350,0,0,0,null,"2018-02-01",null,null,null,null,null,null,null,"2018-02-01"]
["2018-02-02",null,23190,23190,0,0,350,1306,1306,0,null,0,350,0,0,0,null,"2018-02-02",null,null,null,null,null,null,null,"2018-02-02"]
["2018-02-03",null,23190,23190,0,0,350,1306,1306,0,null,0,350,0,0,0,null,"2018-02-03",null,null,null,null,null,null,null,"2018-02-03"]
["2018-02-04",null,23190,23190,0,0,350,1306,1306,0,null,0,350,0,0,0,null,"2018-02-04",null,null,null,null,null,null,null,"2018-02-04"]
["2018-02-05",null,23190,23190,0,0,350,1306,1306,0,null,0,350,0,0,0,null,"2018-02-05",null,null,null,null,null,null,null,"2018-02-05"]
["2018-02-06",null,23190,23190,0,0,350,1306,1306,0,null,0,350,0,0,0,null,"2018-02-06",null,null,null,null,null,null,null,"2018-02-06"]
["2018-02-07",null,23190,23190,0,0,350,1306,1306,0,null,0,350,0,0,0,null,"2018-02-07",null,null,null,null,null,null,null,"2018-02-07"]
["2018-02-08",null,23190,23190,0,0,350,1306,1306,0,null,0,350,0,0,0,null,"2018-02-08",null,null,null,null,null,null,null,"2018-02-08"]
["2018-02-09",null,23190,23190,0,0,350,1306,1306,0,null,0,350,0,0,0,null,"2018-02-09",null,null,null,null,null,null,null,"2018-02-09"]
["2018-02-10",null,23190,23190,0,0,350,1306,1306,0,null,0,350,0,0,0,null,"2018-02-10",null,null,null,null,null,null,null,"2018-02-10"]
["2018-02-11",null,23190,23190,0,0,350,1306,1306,0,null,0,350,0,0,0,null,"2018-02-11",null,null,null,null,null,null,null,"2018-02-11"]
["2018-02-12",null,23190,23190,0,0,350,1306,1306,0,null,0,350,0,0,0,null,"2018-02-12",null,null,null,null,null,null,null,"2018-02-12"]
["2018-02-13",null,23190,23190,0,0,350,1306,1306,0,null,0,350,0,0,0,null,"2018-02-13",null,null,null,null,null,null,null,"2018-02-13"]
["2018-02-14",null,23190,23190,0,0,350,1306,1306,0,null,0,350,0,0,0,null,"2018-02-14",null,null,null,null,null,null,null,"2018-02-14"]
["2018-02-15",null,23190,23190,0,0,350,1306,1306,0,null,0,350,0,0,0,null,"2018-02-15",null,null,null,null,null,null,null,"2018-02-15"]
["2018-02-16",null,23190,23190,0,0,350,1306,1306,0,null,0,350,0,0,0,null,"2018-02-16",null,null,null,null,null,null,null,"2018-02-16"]
["2018-02-17",null,23190,23190,0,0,350,1306,1306,0,null,0,350,0,0,0,null,"2018-02-17",null,null,null,null,null,null,null,"2018-02-17"]
["2018-02-18",null,23190,23190,0,0,350,1306,1306,0,null,0,350,0,0,0,null,"2018-02-18",null,null,null,null,null,null,null,"2018-02-18"]
["2018-02-19",null,23190,23190,0,280,350,1306,1306,0,null,0,630,0,0,0,null,"2018-02-19",null,null,null,null,null,null,null,"2018-02-19"]
["2018-02-20",null,23190,23190,0,0,630,1306,1306,0,null,0,630,0,0,0,null,"2018-02-20",null,null,null,null,null,null,null,"2018-02-20"]
["2018-02-21",null,23190,23190,0,0,630,1306,1306,0,null,0,630,0,0,0,null,"2018-02-21",null,null,null,null,null,null,null,"2018-02-21"]
["2018-02-22",null,23190,23190,0,240,630,1306,1306,0,null,0,870,0,0,0,null,"2018-02-22",null,null,null,null,null,null,null,"2018-02-22"]
["2018-02-23",null,23190,23190,0,0,870,1306,1306,0,null,0,870,0,0,0,null,"2018-02-23",null,null,null,null,null,null,null,"2018-02-23"]
["2018-02-24",null,23190,23190,0,0,870,1306,1306,0,null,0,870,0,0,0,null,"2018-02-24",null,null,null,null,null,null,null,"2018-02-24"]
["2018-02-25",null,23190,23190,0,0,870,1306,1306,0,null,0,870,0,0,0,null,"2018-02-25",null,null,null,null,null,null,null,"2018-02-25"]
["2018-02-26",null,23190,23190,0,0,870,1306,1306,0,null,0,870,0,0,0,null,"2018-02-26",null,null,null,null,null,null,null,"2018-02-26"]
["2018-02-27",null,23190,23190,0,0,870,1306,1306,0,null,0,870,0,0,0,null,"2018-02-27",null,null,null,null,null,null,null,"2018-02-27"]
["2018-02-28",null,23190,23190,0,290,870,1306,1306,0,null,0,1160,0,0,0,null,"2018-02-28",null,null,null,null,null,null,null,"2018-02-28"]
["",null,"",null,"","","","",null,"",null,"","","","","",null,"",null,null,null,null,null,null,null,""]
["",null,"",null,"","","","",null,"",null,"","","","","",null,"",null,null,null,null,null,null,null,""]
["",null,"",null,"","","","",null,"",null,"","","","","",null,"",null,null,null,null,null,null,null,""]
["Итог",null,null,null,0,810,null,null,null,0,0,0,null,0,0,0,null,"1-я пол.",0,0,0,0,0,0,0,"1-я пол."]
[null,null,null,null,null,null,null,null,null,null,0,null,null,null,null,null,null,"2-я пол.",0,0,0,0,0,0,0,"2-я пол."]
[null,null,null,null,null,null,null,null,null,null,0]

{"sheet":"Март","index":2,"n_rows":40,"n_cols":26,"rows_kept":40,"cut":false,"hidden":false,"merged":[[1,0,1,15],[2,0,2,15],[3,14,3,15]]}
[null,null,null,null,null,null,null,null,null,null,null,null,null,null,null,"Март",null,null,null,null,null,null,null,"Экономия","Базовая норма расхода на 100 км","Базовая норма расхода на 1 мото/час"]
["Общество с ограниченной ответственностью  \"Втормет Царицыно\"",null,null,null,null,null,null,null,null,null,null,null,null,null,null,null,null,"1-я пол.","2018-03-01","2018-03-15",350,0,0,0,46.860000000000007,5.5]
["Отчет водителя ломовоза с манипулятором",null,null,null,null,null,null,null,null,null,null,null,null,null,null,null,null,"2-я пол.","2018-03-16","2018-03-31",350,917,0.40144601962922571,198.87399999999997]
[null,null,null,null,null,null,null,"за",2018,null,null,null,null,null,"с 504 уо 777",null,null,null,"",null,null,null,"",null,"Зима","Норма 1"]
[]
["Дата","ФИО водителя","Показание одометра машины на начало дня, км","Показание одометра машины на конец дня, км","Пройдено за день, км","Выдано топливо, литр","Остаток топлива в баке на начало дня, литр","Показание счетчика моточасов спецоборудования на начало дня, м/ч","Показание счетчика моточасов  спецоборудования на конец дня, м/ч","Работа спецоборудования за день, м/ч","Количество ходок","Расход топлива на работу спецоборудования, литр","Остаток топлива в баке на конец дня, литр","Расход топлива по норме, литр","Фактический расход топлива, литр","Отклонение от нормы (Перерасход(+), экономия(-)), литр",null,"Дата","Обнуление одометра, км","Пройдено за день, км","Выдано топливо, литр","Обнуление счетчика моточасов спецоборудования, м/ч","Работа спецоборудования за день, м/ч","Расход топлива по норме, литр","Фактический расход топлива, литр","Дата"]
["2018-03-01",null,23190,23190,0,0,350,1306,1306,0,null,0,350,0,0,0,null,"2018-03-01",null,null,null,null,null,null,null,"2018-03-01"]
["2018-03-02",null,23190,23190,0,0,350,1306,1306,0,null,0,350,0,0,0,null,"2018-03-02",null,null,null,null,null,null,null,"2018-03-02"]
["2018-03-03",null,23190,23190,0,0,350,1306,1306,0,null,0,350,0,0,0,null,"2018-03-03",null,null,null,null,null,null,null,"2018-03-03"]
["2018-03-04",null,23190,23190,0,0,350,1306,1306,0,null,0,350,0,0,0,null,"2018-03-04",null,null,null,null,null,null,null,"2018-03-04"]
["2018-03-05",null,23190,23190,0,0,350,1306,1306,0,null,0,350,0,0,0,null,"2018-03-05",null,null,null,null,null,null,null,"2018-03-05"]
["2018-03-06",null,23190,23190,0,0,350,1306,1306,0,null,0,350,0,0,0,null,"2018-03-06",null,null,null,null,null,null,null,"2018-03-06"]
["2018-03-07",null,23190,23190,0,0,350,1306,1306,0,null,0,350,0,0,0,null,"2018-03-07",null,null,null,null,null,null,null,"2018-03-07"]
["2018-03-08",null,23190,23190,0,0,350,1306,1306,0,null,0,350,0,0,0,null,"2018-03-08",null,null,null,null,null,null,null,"2018-03-08"]
["2018-03-09",null,23190,23190,0,0,350,1306,1306,0,null,0,350,0,0,0,null,"2018-03-09",null,null,null,null,null,null,null,"2018-03-09"]
["2018-03-10",null,23190,23190,0,0,350,1306,1306,0,null,0,350,0,0,0,null,"2018-03-10",null,null,null,null,null,null,null,"2018-03-10"]
["2018-03-11",null,23190,23190,0,0,350,1306,1306,0,null,0,350,0,0,0,null,"2018-03-11",null,null,null,null,null,null,null,"2018-03-11"]
["2018-03-12",null,23190,23190,0,0,350,1306,1306,0,null,0,350,0,0,0,null,"2018-03-12",null,null,null,null,null,null,null,"2018-03-12"]
["2018-03-13",null,23190,23190,0,0,350,1306,1306,0,null,0,350,0,0,0,null,"2018-03-13",null,null,null,null,null,null,null,"2018-03-13"]
["2018-03-14",null,23190,23190,0,0,350,1306,1306,0,null,0,350,0,0,0,null,"2018-03-14",null,null,null,null,null,null,null,"2018-03-14"]
["2018-03-15",null,23190,23190,0,0,350,1306,1306,0,null,0,350,0,0,0,null,"2018-03-15",null,null,null,null,null,null,null,"2018-03-15"]
["2018-03-16",null,23190,23190,0,0,350,1306,1306,0,3,0,350,0,0,0,null,"2018-03-16",null,null,null,null,null,null,null,"2018-03-16"]
["2018-03-17",null,23190,23190,0,0,350,1306,1306,0,3,0,350,0,0,0,null,"2018-03-17",null,null,null,null,null,null,null,"2018-03-17"]
["2018-03-18",null,23190,23190,0,0,350,1306,1306,0,3,0,350,0,0,0,null,"2018-03-18",null,null,null,null,null,null,null,"2018-03-18"]
["2018-03-19",null,23190,23190,0,0,350,1306,1306,0,1,0,350,0,0,0,null,"2018-03-19",null,null,null,null,null,null,null,"2018-03-19"]
["2018-03-20",null,23190,23190,0,280,350,1306,1306,0,2,0,350,0,0,0,null,"2018-03-20",null,null,-280,null,null,null,null,"2018-03-20"]
["2018-03-21",null,23190,23190,0,0,350,1306,1306,0,2,0,350,0,0,0,null,"2018-03-21",null,null,null,null,null,null,null,"2018-03-21"]
["2018-03-22",null,23190,23190,0,0,350,1306,1306,0,2,0,350,0,0,0,null,"2018-03-22",null,null,null,null,null,null,null,"2018-03-22"]
["2018-03-23",null,23190,23190,0,0,350,1306,1306,0,2,0,350,0,0,0,null,"2018-03-23",null,null,null,null,null,null,null,"2018-03-23"]
["2018-03-24",null,23190,23190,0,0,350,1306,1306,0,1,0,350,0,0,0,null,"2018-03-24",null,null,null,null,null,null,null,"2018-03-24"]
["2018-03-25",null,23190,23190,0,0,350,1306,1306,0,3,0,350,0,0,0,null,"2018-03-25",null,null,null,null,null,null,null,"2018-03-25"]
["2018-03-26","Ильичев Ю.Ф.",23190,23270,80,0,350,1306,1312,6,3,33,521,70.488,109,38.512,null,"2018-03-26",null,null,280,null,null,null,-67,"2018-03-26"]
["2018-03-27","Ильичев Ю.Ф.",23270,23280,10,230,521,1312,1316,4,2,22,710,26.686,41,14.314,null,"2018-03-27",null,null,null,null,null,null,-25,"2018-03-27"]
["2018-03-28","Ильичев Ю.Ф.",23280,23370,90,0,710,1316,1324,8,4,44,577,86.174000000000007,133,46.825999999999993,null,"2018-03-28",null,null,null,null,null,null,-82,"2018-03-28"]
["2018-03-29","Ильичев Ю.Ф.",23370,23580,210,0,577,1324,1330,6,3,33,582,131.40600000000001,202,70.593999999999994,null,"2018-03-29",null,null,207,null,null,null,-125,"2018-03-29"]
["2018-03-30","Ильичев Ю.Ф.",23580,23590,10,0,582,1330,1334,4,2,22,541,26.686,41,14.314,null,"2018-03-30",null,null,null,null,null,null,-25,"2018-03-30"]
["2018-03-31","Ильичев Ю.Ф.",23590,23600,10,200,541,1334,1338,4,2,22,700,26.686,41,14.314,null,"2018-03-31",null,null,null,null,null,null,-25,"2018-03-31"]
["Итог",null,null,null,410,710,null,null,null,32,38,176,null,368.12599999999998,567,198.87399999999997,null,"1-я пол.",0,0,0,0,0,0,0,"1-я пол."]
[null,null,null,null,null,null,null,null,null,null,0,null,null,null,null,null,null,"2-я пол.",0,0,207,0,0,0,-349,"2-я пол."]
[null,null,null,null,null,null,null,null,null,null,38]

{"sheet":"Апрель","index":3,"n_rows":40,"n_cols":26,"rows_kept":40,"cut":false,"hidden":false,"merged":[[1,0,1,15],[2,0,2,15],[3,14,3,15]]}
[null,null,null,null,null,null,null,null,null,null,null,null,null,null,null,"Апрель",null,null,null,null,null,null,null,"Экономия","Базовая норма расхода на 100 км","Базовая норма расхода на 1 мото/час"]
["Общество с ограниченной ответственностью  \"Втормет Царицыно\"",null,null,null,null,null,null,null,null,null,null,null,null,null,null,null,null,"1-я пол.",{"$f":"INDIRECT(TEXT(A7-1,\"ММММ\")&\"!T3\")+1","v":"2018-04-01"},"2018-04-14",{"$f":"ТС!E5","v":350},{"$f":"SUMIFS(Апрель[Выдано топливо, литр],Апрель[Дата],\">=\"&$S$2,Апрель[Дата],\"<=\"&$T$2)+IF(MONTH(T2)<>MONTH(S2),INDIRECT(TEXT(A7-1,\"ММММ\")&\"!F38\")-SUM(INDIRECT(TEXT(A7-1,\"ММММ\")&\"!V1:V2\")))+SUMIFS($U$7:$U$37,Апрель[Дата],\">=\"&$S$2,Апрель[Дата],\"<=\"&$T$2)+IF(MONTH(T2)<>MONTH(S2),INDIRECT(TEXT(A7-1,\"ММММ\")&\"!F38\")-SUM(INDIRECT(TEXT(A7-1,\"ММММ\")&\"!V1:V2\")))","v":0},{"$f":"IF(V2=0,0,(SUMIFS(N7:N37,A7:A37,\">=\"&S2,A7:A37,\"<=\"&T2)+SUMIFS(INDIRECT(TEXT(A7-1,\"ММММ\")&\"!N7:N37\"),INDIRECT(TEXT(A7-1,\"ММММ\")&\"!A7:A37\"),\">=\"&S2))/(V2-U2+IF(MONTH(T2)=MONTH(S2),G7,INDEX(INDIRECT(TEXT(A7-1,\"ММММ\")&\"!G7:G37\"),DAY(S2)))))","v":0},{"$f":"SUMIFS(Апрель[Отклонение от нормы (Перерасход(+), экономия(-)), литр],Апрель[Дата],\">=\"&$S$2,Апрель[Дата],\"<=\"&$T$2)","v":0},{"$f":"IF(Y4=\"Зима\",VLOOKUP(Z4,Расчет[[Номер гос.регистрации / Заводской номер]:[Итога норма а/м \"ЛЕТО\"]],8,FALSE),VLOOKUP(Z4,Расчет[[Номер гос.регистрации / Заводской номер]:[Итога норма а/м \"ЛЕТО\"]],9,FALSE))","v":42.6},{"$f":"IF(Y4=\"Зима\",VLOOKUP(Z4,Расчет[[Номер гос.регистрации / Заводской номер]:[Итога норма а/м \"ЛЕТО\"]],13,FALSE),VLOOKUP(Z4,Расчет[[Номер гос.регистрации / Заводской номер]:[Итога норма а/м \"ЛЕТО\"]],14,FALSE))","v":5}]
["Отчет водителя ломовоза с манипулятором",null,null,null,null,null,null,null,null,null,null,null,null,null,null,null,null,"2-я пол.",{"$f":"T2+1","v":"2018-04-15"},{"$f":"INDEX(Апрель[Дата],COUNT(Апрель[Дата]))-T1","v":"2018-04-30"},{"$f":"ТС!E6","v":350},{"$f":"SUMIFS(Апрель[Выдано топливо, литр],Апрель[Дата],\">=\"&$S$3,Апрель[Дата],\"<=\"&$T$3)+IF(MONTH(T3)<>MONTH(S3),INDIRECT(TEXT(A7-1,\"ММММ\")&\"!F38\")-SUM(INDIRECT(TEXT(A7-1,\"ММММ\")&\"!V1:V2\")))+SUMIFS($U$7:$U$37,Апрель[Дата],\">=\"&$S$3,Апрель[Дата],\"<=\"&$T$3)+IF(MONTH(T3)<>MONTH(S3),INDIRECT(TEXT(A7-1,\"ММММ\")&\"!F38\")-SUM(INDIRECT(TEXT(A7-1,\"ММММ\")&\"!V1:V2\")))","v":1240},{"$f":"IF(V3=0,0,(SUMIFS(N7:N37,A7:A37,\">=\"&S3,A7:A37,\"<=\"&T3)+SUMIFS(INDIRECT(TEXT(A7-1,\"ММММ\")&\"!N7:N37\"),INDIRECT(TEXT(A7-1,\"ММММ\")&\"!A7:A37\"),\">=\"&S3))/(V3-U3+IF(MONTH(T3)=MONTH(S3),G7,INDEX(INDIRECT(TEXT(A7-1,\"ММММ\")&\"!G7:G37\"),DAY(S3)))))","v":0.99995161290322587},{"$f":"SUMIFS(Апрель[Отклонение от нормы (Перерасход(+), экономия(-)), литр],Апрель[Дата],\">=\"&$S$3,Апрель[Дата],\"<=\"&$T$3)","v":1240}]
[null,null,null,null,null,null,null,"за",2018,null,null,null,null,null,{"$f":"Январь!O4","v":"с 504 уо 777"},null,null,null,{"$f":"IF(INDEX(Апрель[Дата],COUNT(Апрель[Дата]))=T3,\"\",T3+1)","v":""},null,null,null,{"$f":"IFERROR(IF(S4=\"\",\"\",INDIRECT(TEXT(A7+40,\"ММММ\")&\"!W2\")),)","v":""},null,"Лето","Норма 1"]
[]
["Дата","ФИО водителя","Показание одометра машины на начало дня, км","Показание одометра машины на конец дня, км","Пройдено за день, км","Выдано топливо, литр","Остаток топлива в баке на начало дня, литр","Показание счетчика моточасов спецоборудования на начало дня, м/ч","Показание счетчика моточасов  спецоборудования на конец дня, м/ч","Работа спецоборудования за день, м/ч","Количество ходок","Расход топлива на работу спецоборудования, литр","Остаток топлива в баке на конец дня, литр","Расход топлива по норме, литр","Фактический расход топлива, литр","Отклонение от нормы (Перерасход(+), экономия(-)), литр",null,"Дата","Обнуление одометра, км","Пройдено за день, км","Выдано топливо, литр","Обнуление счетчика моточасов спецоборудования, м/ч","Работа спецоборудования за день, м/ч","Расход топлива по норме, литр","Фактический расход топлива, литр","Дата"]
[{"$f":"IFERROR(DATEVALUE((COUNT($A$6:A6)+1)&$P$1&$I$4),\"\")","v":"2018-04-01"},null,{"$f":"INDEX(Март!D7:D37,COUNT(Март!D7:D37))","v":23600},23600,{"$f":"IFERROR(Апрель[[#This Row],[Показание одометра машины на конец дня, км]]-Апрель[[#This Row],[Показание одометра машины на начало дня, км]]+T7,\"\")","v":0},{"$f":"IF(Апрель[[#This Row],[Дата]]=\"\",\"\",SUMPRODUCT([1]Апрель!$E$4:$E$153*([1]Апрель!$G$4:$G$153=$O$4)*([1]Апрель!$D$4:$D$153=Апрель[[#This Row],[Дата]])))","v":0},{"$f":"U2","v":350},{"$f":"INDEX(Март!I7:I37,COUNT(Март!I7:I37))","v":1338},1338,{"$f":"IFERROR(IF(W7=\"\",Апрель[[#This Row],[Показание счетчика моточасов  спецоборудования на конец дня, м/ч]],Апрель[[#This Row],[Показание счетчика моточасов  спецоборудования на конец дня, м/ч]]+1)-Апрель[[#This Row],[Показание счетчика моточасов спецоборудования на начало дня, м/ч]],\"\")","v":0},null,{"$f":"IF(Апрель[[#This Row],[Работа спецоборудования за день, м/ч]]=\"\",\"\",Апрель[[#This Row],[Работа спецоборудования за день, м/ч]]*$Z$2)","v":0},{"$f":"IFERROR(IF(VLOOKUP([Дата],S$2:U$3,3),IFERROR(IF(U7=\"\",Апрель[[#This Row],[Выдано топливо, литр]],Апрель[[#This Row],[Выдано топливо, литр]]+U7)+Апрель[[#This Row],[Остаток топлива в баке на начало дня, литр]]-Апрель[[#This Row],[Фактический расход топлива, литр]],\"\"),\"\"),\"\")","v":350},{"$f":"IFERROR(ROUND((Апрель[[#This Row],[Пройдено за день, км]]*0.01*$Y$2+Апрель[[#This Row],[Расход топлива на работу спецоборудования, литр]]),3)+X7,\"\")","v":0},{"$f":"IFERROR(IF(Апрель[[#Totals],[Выдано топливо, литр]]=0,0,(ROUND(Апрель[[#This Row],[Расход топлива по норме, литр]]/IF(DAY([Дата])<=18,$W$2,$W$3),0)))+Y7,)","v":0},{"$f":"IFERROR(IF(Апрель[[#Totals],[Выдано топливо, литр]]=0,0,(ROUND(Апрель[[#This Row],[Расход топлива по норме, литр]]/VLOOKUP([Дата],S$2:W$3,5),0)))+Y7,)","v":0},null,{"$f":"Апрель[[#This Row],[Дата]]","v":"2018-04-01"},null,null,null,null,null,null,null,{"$f":"Апрель[[#This Row],[Дата]]","v":"2018-04-01"}]
[{"$f":"IFERROR(DATEVALUE((COUNT($A$6:A7)+1)&$P$1&$I$4),\"\")","v":"2018-04-02"},null,{"$f":"IFERROR(IF(INDIRECT(TEXT(A7-1,\"ММММ\")&\"!A7:A37\")=\"\",\"\",IF(S7=\"\",D7,S7)),\"\")","v":23600},23600,{"$f":"IFERROR(Апрель[[#This Row],[Показание одометра машины на конец дня, км]]-Апрель[[#This Row],[Показание одометра машины на начало дня, км]]+T8,\"\")","v":0},{"$f":"IF(Апрель[[#This Row],[Дата]]=\"\",\"\",SUMPRODUCT([1]Апрель!$E$4:$E$153*([1]Апрель!$G$4:$G$153=$O$4)*([1]Апрель!$D$4:$D$153=Апрель[[#This Row],[Дата]])))","v":0},{"$f":"IF(Апрель[[#This Row],[Дата]]=\"\",\"\",M7)","v":350},{"$f":"IFERROR(IF(INDIRECT(TEXT(A7-1,\"ММММ\")&\"!A7:A37\")=\"\",\"\",IF(V7=\"\",I7,V7)),\"\")","v":1338},1338,{"$f":"IFERROR(IF(W8=\"\",Апрель[[#This Row],[Показание счетчика моточасов  спецоборудования на конец дня, м/ч]],Апрель[[#This Row],[Показание счетчика моточасов  спецоборудования на конец дня, м/ч]]+1)-Апрель[[#This Row],[Показание счетчика моточасов спецоборудования на начало дня, м/ч]],\"\")","v":0},null,{"$f":"IF(Апрель[[#This Row],[Работа спецоборудования за день, м/ч]]=\"\",\"\",Апрель[[#This Row],[Работа спецоборудования за день, м/ч]]*$Z$2)","v":0},{"$f":"IFERROR(IF(VLOOKUP([Дата],S$2:U$3,3),IFERROR(IF(U8=\"\",Апрель[[#This Row],[Выдано топливо, литр]],Апрель[[#This Row],[Выдано топливо, литр]]+U8)+Апрель[[#This Row],[Остаток топлива в баке на начало дня, литр]]-Апрель[[#This Row],[Фактический расход топлива, литр]],\"\"),\"\"),\"\")","v":350},{"$f":"IFERROR(ROUND((Апрель[[#This Row],[Пройдено за день, км]]*0.01*$Y$2+Апрель[[#This Row],[Расход топлива на работу спецоборудования, литр]]),3)+X8,\"\")","v":0},{"$f":"IFERROR(IF(Апрель[[#Totals],[Выдано топливо, литр]]=0,0,(ROUND(Апрель[[#This Row],[Расход топлива по норме, литр]]/IF(DAY([Дата])<=18,$W$2,$W$3),0)))+Y8,)","v":0},{"$f":"IFERROR(IF(Апрель[[#Totals],[Выдано топливо, литр]]=0,0,(ROUND(Апрель[[#This Row],[Расход топлива по норме, литр]]/VLOOKUP([Дата],S$2:W$3,5),0)))+Y8,)","v":0},null,{"$f":"Апрель[[#This Row],[Дата]]","v":"2018-04-02"},null,null,null,null,null,null,null,{"$f":"Апрель[[#This Row],[Дата]]","v":"2018-04-02"}]
[{"$f":"IFERROR(DATEVALUE((COUNT($A$6:A8)+1)&$P$1&$I$4),\"\")","v":"2018-04-03"},null,{"$f":"IFERROR(IF(INDIRECT(TEXT(A8-1,\"ММММ\")&\"!A7:A37\")=\"\",\"\",IF(S8=\"\",D8,S8)),\"\")","v":23600},23600,{"$f":"IFERROR(Апрель[[#This Row],[Показание одометра машины на конец дня, км]]-Апрель[[#This Row],[Показание одометра машины на начало дня, км]]+T9,\"\")","v":0},{"$f":"IF(Апрель[[#This Row],[Дата]]=\"\",\"\",SUMPRODUCT([1]Апрель!$E$4:$E$153*([1]Апрель!$G$4:$G$153=$O$4)*([1]Апрель!$D$4:$D$153=Апрель[[#This Row],[Дата]])))","v":0},{"$f":"IF(Апрель[[#This Row],[Дата]]=\"\",\"\",M8)","v":350},{"$f":"IFERROR(IF(INDIRECT(TEXT(A8-1,\"ММММ\")&\"!A7:A37\")=\"\",\"\",IF(V8=\"\",I8,V8)),\"\")","v":1338},1338,{"$f":"IFERROR(IF(W9=\"\",Апрель[[#This Row],[Показание счетчика моточасов  спецоборудования на конец дня, м/ч]],Апрель[[#This Row],[Показание счетчика моточасов  спецоборудования на конец дня, м/ч]]+1)-Апрель[[#This Row],[Показание счетчика моточасов спецоборудования на начало дня, м/ч]],\"\")","v":0},null,{"$f":"IF(Апрель[[#This Row],[Работа спецоборудования за день, м/ч]]=\"\",\"\",Апрель[[#This Row],[Работа спецоборудования за день, м/ч]]*$Z$2)","v":0},{"$f":"IFERROR(IF(VLOOKUP([Дата],S$2:U$3,3),IFERROR(IF(U9=\"\",Апрель[[#This Row],[Выдано топливо, литр]],Апрель[[#This Row],[Выдано топливо, литр]]+U9)+Апрель[[#This Row],[Остаток топлива в баке на начало дня, литр]]-Апрель[[#This Row],[Фактический расход топлива, литр]],\"\"),\"\"),\"\")","v":350},{"$f":"IFERROR(ROUND((Апрель[[#This Row],[Пройдено за день, км]]*0.01*$Y$2+Апрель[[#This Row],[Расход топлива на работу спецоборудования, литр]]),3)+X9,\"\")","v":0},{"$f":"IFERROR(IF(Апрель[[#Totals],[Выдано топливо, литр]]=0,0,(ROUND(Апрель[[#This Row],[Расход топлива по норме, литр]]/IF(DAY([Дата])<=18,$W$2,$W$3),0)))+Y9,)","v":0},{"$f":"IFERROR(IF(Апрель[[#Totals],[Выдано топливо, литр]]=0,0,(ROUND(Апрель[[#This Row],[Расход топлива по норме, литр]]/VLOOKUP([Дата],S$2:W$3,5),0)))+Y9,)","v":0},null,{"$f":"Апрель[[#This Row],[Дата]]","v":"2018-04-03"},null,null,null,null,null,null,null,{"$f":"Апрель[[#This Row],[Дата]]","v":"2018-04-03"}]
[{"$f":"IFERROR(DATEVALUE((COUNT($A$6:A9)+1)&$P$1&$I$4),\"\")","v":"2018-04-04"},null,23600,23600,{"$f":"IFERROR(Апрель[[#This Row],[Показание одометра машины на конец дня, км]]-Апрель[[#This Row],[Показание одометра машины на начало дня, км]]+T10,\"\")","v":0},{"$f":"IF(Апрель[[#This Row],[Дата]]=\"\",\"\",SUMPRODUCT([1]Апрель!$E$4:$E$153*([1]Апрель!$G$4:$G$153=$O$4)*([1]Апрель!$D$4:$D$153=Апрель[[#This Row],[Дата]])))","v":0},{"$f":"IF(Апрель[[#This Row],[Дата]]=\"\",\"\",M9)","v":350},1338,1338,{"$f":"IFERROR(IF(W10=\"\",Апрель[[#This Row],[Показание счетчика моточасов  спецоборудования на конец дня, м/ч]],Апрель[[#This Row],[Показание счетчика моточасов  спецоборудования на конец дня, м/ч]]+1)-Апрель[[#This Row],[Показание счетчика моточасов спецоборудования на начало дня, м/ч]],\"\")","v":0},null,{"$f":"IF(Апрель[[#This Row],[Работа спецоборудования за день, м/ч]]=\"\",\"\",Апрель[[#This Row],[Работа спецоборудования за день, м/ч]]*$Z$2)","v":0},{"$f":"IFERROR(IF(VLOOKUP([Дата],S$2:U$3,3),IFERROR(IF(U10=\"\",Апрель[[#This Row],[Выдано топливо, литр]],Апрель[[#This Row],[Выдано топливо, литр]]+U10)+Апрель[[#This Row],[Остаток топлива в баке на начало дня, литр]]-Апрель[[#This Row],[Фактический расход топлива, литр]],\"\"),\"\"),\"\")","v":350},{"$f":"IFERROR(ROUND((Апрель[[#This Row],[Пройдено за день, км]]*0.01*$Y$2+Апрель[[#This Row],[Расход топлива на работу спецоборудования, литр]]),3)+X10,\"\")","v":0},{"$f":"IFERROR(IF(Апрель[[#Totals],[Выдано топливо, литр]]=0,0,(ROUND(Апрель[[#This Row],[Расход топлива по норме, литр]]/IF(DAY([Дата])<=18,$W$2,$W$3),0)))+Y10,)","v":0},{"$f":"IFERROR(IF(Апрель[[#Totals],[Выдано топливо, литр]]=0,0,(ROUND(Апрель[[#This Row],[Расход топлива по норме, литр]]/VLOOKUP([Дата],S$2:W$3,5),0)))+Y10,)","v":0},null,{"$f":"Апрель[[#This Row],[Дата]]","v":"2018-04-04"},null,null,null,null,null,null,null,{"$f":"Апрель[[#This Row],[Дата]]","v":"2018-04-04"}]
[{"$f":"IFERROR(DATEVALUE((COUNT($A$6:A10)+1)&$P$1&$I$4),\"\")","v":"2018-04-05"},null,23600,23600,{"$f":"IFERROR(Апрель[[#This Row],[Показание одометра машины на конец дня, км]]-Апрель[[#This Row],[Показание одометра машины на начало дня, км]]+T11,\"\")","v":0},{"$f":"IF(Апрель[[#This Row],[Дата]]=\"\",\"\",SUMPRODUCT([1]Апрель!$E$4:$E$153*([1]Апрель!$G$4:$G$153=$O$4)*([1]Апрель!$D$4:$D$153=Апрель[[#This Row],[Дата]])))","v":0},{"$f":"IF(Апрель[[#This Row],[Дата]]=\"\",\"\",M10)","v":350},1338,1338,{"$f":"IFERROR(IF(W11=\"\",Апрель[[#This Row],[Показание счетчика моточасов  спецоборудования на конец дня, м/ч]],Апрель[[#This Row],[Показание счетчика моточасов  спецоборудования на конец дня, м/ч]]+1)-Апрель[[#This Row],[Показание счетчика моточасов спецоборудования на начало дня, м/ч]],\"\")","v":0},null,{"$f":"IF(Апрель[[#This Row],[Работа спецоборудования за день, м/ч]]=\"\",\"\",Апрель[[#This Row],[Работа спецоборудования за день, м/ч]]*$Z$2)","v":0},{"$f":"IFERROR(IF(VLOOKUP([Дата],S$2:U$3,3),IFERROR(IF(U11=\"\",Апрель[[#This Row],[Выдано топливо, литр]],Апрель[[#This Row],[Выдано топливо, литр]]+U11)+Апрель[[#This Row],[Остаток топлива в баке на начало дня, литр]]-Апрель[[#This Row],[Фактический расход топлива, литр]],\"\"),\"\"),\"\")","v":350},{"$f":"IFERROR(ROUND((Апрель[[#This Row],[Пройдено за день, км]]*0.01*$Y$2+Апрель[[#This Row],[Расход топлива на работу спецоборудования, литр]]),3)+X11,\"\")","v":0},{"$f":"IFERROR(IF(Апрель[[#Totals],[Выдано топливо, литр]]=0,0,(ROUND(Апрель[[#This Row],[Расход топлива по норме, литр]]/IF(DAY([Дата])<=18,$W$2,$W$3),0)))+Y11,)","v":0},{"$f":"IFERROR(IF(Апрель[[#Totals],[Выдано топливо, литр]]=0,0,(ROUND(Апрель[[#This Row],[Расход топлива по норме, литр]]/VLOOKUP([Дата],S$2:W$3,5),0)))+Y11,)","v":0},null,{"$f":"Апрель[[#This Row],[Дата]]","v":"2018-04-05"},null,null,null,null,null,null,null,{"$f":"Апрель[[#This Row],[Дата]]","v":"2018-04-05"}]
[{"$f":"IFERROR(DATEVALUE((COUNT($A$6:A11)+1)&$P$1&$I$4),\"\")","v":"2018-04-06"},null,23600,23600,{"$f":"IFERROR(Апрель[[#This Row],[Показание одометра машины на конец дня, км]]-Апрель[[#This Row],[Показание одометра машины на начало дня, км]]+T12,\"\")","v":0},{"$f":"IF(Апрель[[#This Row],[Дата]]=\"\",\"\",SUMPRODUCT([1]Апрель!$E$4:$E$153*([1]Апрель!$G$4:$G$153=$O$4)*([1]Апрель!$D$4:$D$153=Апрель[[#This Row],[Дата]])))","v":0},{"$f":"IF(Апрель[[#This Row],[Дата]]=\"\",\"\",M11)","v":350},1338,1338,{"$f":"IFERROR(IF(W12=\"\",Апрель[[#This Row],[Показание счетчика моточасов  спецоборудования на конец дня, м/ч]],Апрель[[#This Row],[Показание счетчика моточасов  спецоборудования на конец дня, м/ч]]+1)-Апрель[[#This Row],[Показание счетчика моточасов спецоборудования на начало дня, м/ч]],\"\")","v":0},null,{"$f":"IF(Апрель[[#This Row],[Работа спецоборудования за день, м/ч]]=\"\",\"\",Апрель[[#This Row],[Работа спецоборудования за день, м/ч]]*$Z$2)","v":0},{"$f":"IFERROR(IF(VLOOKUP([Дата],S$2:U$3,3),IFERROR(IF(U12=\"\",Апрель[[#This Row],[Выдано топливо, литр]],Апрель[[#This Row],[Выдано топливо, литр]]+U12)+Апрель[[#This Row],[Остаток топлива в баке на начало дня, литр]]-Апрель[[#This Row],[Фактический расход топлива, литр]],\"\"),\"\"),\"\")","v":350},{"$f":"IFERROR(ROUND((Апрель[[#This Row],[Пройдено за день, км]]*0.01*$Y$2+Апрель[[#This Row],[Расход топлива на работу спецоборудования, литр]]),3)+X12,\"\")","v":0},{"$f":"IFERROR(IF(Апрель[[#Totals],[Выдано топливо, литр]]=0,0,(ROUND(Апрель[[#This Row],[Расход топлива по норме, литр]]/IF(DAY([Дата])<=18,$W$2,$W$3),0)))+Y12,)","v":0},{"$f":"IFERROR(IF(Апрель[[#Totals],[Выдано топливо, литр]]=0,0,(ROUND(Апрель[[#This Row],[Расход топлива по норме, литр]]/VLOOKUP([Дата],S$2:W$3,5),0)))+Y12,)","v":0},null,{"$f":"Апрель[[#This Row],[Дата]]","v":"2018-04-06"},null,null,null,null,null,null,null,{"$f":"Апрель[[#This Row],[Дата]]","v":"2018-04-06"}]
[{"$f":"IFERROR(DATEVALUE((COUNT($A$6:A12)+1)&$P$1&$I$4),\"\")","v":"2018-04-07"},null,23600,23600,{"$f":"IFERROR(Апрель[[#This Row],[Показание одометра машины на конец дня, км]]-Апрель[[#This Row],[Показание одометра машины на начало дня, км]]+T13,\"\")","v":0},{"$f":"IF(Апрель[[#This Row],[Дата]]=\"\",\"\",SUMPRODUCT([1]Апрель!$E$4:$E$153*([1]Апрель!$G$4:$G$153=$O$4)*([1]Апрель!$D$4:$D$153=Апрель[[#This Row],[Дата]])))","v":0},{"$f":"IF(Апрель[[#This Row],[Дата]]=\"\",\"\",M12)","v":350},1338,1338,{"$f":"IFERROR(IF(W13=\"\",Апрель[[#This Row],[Показание счетчика моточасов  спецоборудования на конец дня, м/ч]],Апрель[[#This Row],[Показание счетчика моточасов  спецоборудования на конец дня, м/ч]]+1)-Апрель[[#This Row],[Показание счетчика моточасов спецоборудования на начало дня, м/ч]],\"\")","v":0},null,{"$f":"IF(Апрель[[#This Row],[Работа спецоборудования за день, м/ч]]=\"\",\"\",Апрель[[#This Row],[Работа спецоборудования за день, м/ч]]*$Z$2)","v":0},{"$f":"IFERROR(IF(VLOOKUP([Дата],S$2:U$3,3),IFERROR(IF(U13=\"\",Апрель[[#This Row],[Выдано топливо, литр]],Апрель[[#This Row],[Выдано топливо, литр]]+U13)+Апрель[[#This Row],[Остаток топлива в баке на начало дня, литр]]-Апрель[[#This Row],[Фактический расход топлива, литр]],\"\"),\"\"),\"\")","v":350},{"$f":"IFERROR(ROUND((Апрель[[#This Row],[Пройдено за день, км]]*0.01*$Y$2+Апрель[[#This Row],[Расход топлива на работу спецоборудования, литр]]),3)+X13,\"\")","v":0},{"$f":"IFERROR(IF(Апрель[[#Totals],[Выдано топливо, литр]]=0,0,(ROUND(Апрель[[#This Row],[Расход топлива по норме, литр]]/IF(DAY([Дата])<=18,$W$2,$W$3),0)))+Y13,)","v":0},{"$f":"IFERROR(IF(Апрель[[#Totals],[Выдано топливо, литр]]=0,0,(ROUND(Апрель[[#This Row],[Расход топлива по норме, литр]]/VLOOKUP([Дата],S$2:W$3,5),0)))+Y13,)","v":0},null,{"$f":"Апрель[[#This Row],[Дата]]","v":"2018-04-07"},null,null,null,null,null,null,null,{"$f":"Апрель[[#This Row],[Дата]]","v":"2018-04-07"}]
[{"$f":"IFERROR(DATEVALUE((COUNT($A$6:A13)+1)&$P$1&$I$4),\"\")","v":"2018-04-08"},null,23600,23600,{"$f":"IFERROR(Апрель[[#This Row],[Показание одометра машины на конец дня, км]]-Апрель[[#This Row],[Показание одометра машины на начало дня, км]]+T14,\"\")","v":0},{"$f":"IF(Апрель[[#This Row],[Дата]]=\"\",\"\",SUMPRODUCT([1]Апрель!$E$4:$E$153*([1]Апрель!$G$4:$G$153=$O$4)*([1]Апрель!$D$4:$D$153=Апрель[[#This Row],[Дата]])))","v":0},{"$f":"IF(Апрель[[#This Row],[Дата]]=\"\",\"\",M13)","v":350},1338,1338,{"$f":"IFERROR(IF(W14=\"\",Апрель[[#This Row],[Показание счетчика моточасов  спецоборудования на конец дня, м/ч]],Апрель[[#This Row],[Показание счетчика моточасов  спецоборудования на конец дня, м/ч]]+1)-Апрель[[#This Row],[Показание счетчика моточасов спецоборудования на начало дня, м/ч]],\"\")","v":0},null,{"$f":"IF(Апрель[[#This Row],[Работа спецоборудования за день, м/ч]]=\"\",\"\",Апрель[[#This Row],[Работа спецоборудования за день, м/ч]]*$Z$2)","v":0},{"$f":"IFERROR(IF(VLOOKUP([Дата],S$2:U$3,3),IFERROR(IF(U14=\"\",Апрель[[#This Row],[Выдано топливо, литр]],Апрель[[#This Row],[Выдано топливо, литр]]+U14)+Апрель[[#This Row],[Остаток топлива в баке на начало дня, литр]]-Апрель[[#This Row],[Фактический расход топлива, литр]],\"\"),\"\"),\"\")","v":350},{"$f":"IFERROR(ROUND((Апрель[[#This Row],[Пройдено за день, км]]*0.01*$Y$2+Апрель[[#This Row],[Расход топлива на работу спецоборудования, литр]]),3)+X14,\"\")","v":0},{"$f":"IFERROR(IF(Апрель[[#Totals],[Выдано топливо, литр]]=0,0,(ROUND(Апрель[[#This Row],[Расход топлива по норме, литр]]/IF(DAY([Дата])<=18,$W$2,$W$3),0)))+Y14,)","v":0},{"$f":"IFERROR(IF(Апрель[[#Totals],[Выдано топливо, литр]]=0,0,(ROUND(Апрель[[#This Row],[Расход топлива по норме, литр]]/VLOOKUP([Дата],S$2:W$3,5),0)))+Y14,)","v":0},null,{"$f":"Апрель[[#This Row],[Дата]]","v":"2018-04-08"},null,null,null,null,null,null,null,{"$f":"Апрель[[#This Row],[Дата]]","v":"2018-04-08"}]
[{"$f":"IFERROR(DATEVALUE((COUNT($A$6:A14)+1)&$P$1&$I$4),\"\")","v":"2018-04-09"},null,23600,23600,{"$f":"IFERROR(Апрель[[#This Row],[Показание одометра машины на конец дня, км]]-Апрель[[#This Row],[Показание одометра машины на начало дня, км]]+T15,\"\")","v":0},{"$f":"IF(Апрель[[#This Row],[Дата]]=\"\",\"\",SUMPRODUCT([1]Апрель!$E$4:$E$153*([1]Апрель!$G$4:$G$153=$O$4)*([1]Апрель!$D$4:$D$153=Апрель[[#This Row],[Дата]])))","v":0},{"$f":"IF(Апрель[[#This Row],[Дата]]=\"\",\"\",M14)","v":350},1338,1338,{"$f":"IFERROR(IF(W15=\"\",Апрель[[#This Row],[Показание счетчика моточасов  спецоборудования на конец дня, м/ч]],Апрель[[#This Row],[Показание счетчика моточасов  спецоборудования на конец дня, м/ч]]+1)-Апрель[[#This Row],[Показание счетчика моточасов спецоборудования на начало дня, м/ч]],\"\")","v":0},null,{"$f":"IF(Апрель[[#This Row],[Работа спецоборудования за день, м/ч]]=\"\",\"\",Апрель[[#This Row],[Работа спецоборудования за день, м/ч]]*$Z$2)","v":0},{"$f":"IFERROR(IF(VLOOKUP([Дата],S$2:U$3,3),IFERROR(IF(U15=\"\",Апрель[[#This Row],[Выдано топливо, литр]],Апрель[[#This Row],[Выдано топливо, литр]]+U15)+Апрель[[#This Row],[Остаток топлива в баке на начало дня, литр]]-Апрель[[#This Row],[Фактический расход топлива, литр]],\"\"),\"\"),\"\")","v":350},{"$f":"IFERROR(ROUND((Апрель[[#This Row],[Пройдено за день, км]]*0.01*$Y$2+Апрель[[#This Row],[Расход топлива на работу спецоборудования, литр]]),3)+X15,\"\")","v":0},{"$f":"IFERROR(IF(Апрель[[#Totals],[Выдано топливо, литр]]=0,0,(ROUND(Апрель[[#This Row],[Расход топлива по норме, литр]]/IF(DAY([Дата])<=18,$W$2,$W$3),0)))+Y15,)","v":0},{"$f":"IFERROR(IF(Апрель[[#Totals],[Выдано топливо, литр]]=0,0,(ROUND(Апрель[[#This Row],[Расход топлива по норме, литр]]/VLOOKUP([Дата],S$2:W$3,5),0)))+Y15,)","v":0},null,{"$f":"Апрель[[#This Row],[Дата]]","v":"2018-04-09"},null,null,null,null,null,null,null,{"$f":"Апрель[[#This Row],[Дата]]","v":"2018-04-09"}]
[{"$f":"IFERROR(DATEVALUE((COUNT($A$6:A15)+1)&$P$1&$I$4),\"\")","v":"2018-04-10"},null,23600,23600,{"$f":"IFERROR(Апрель[[#This Row],[Показание одометра машины на конец дня, км]]-Апрель[[#This Row],[Показание одометра машины на начало дня, км]]+T16,\"\")","v":0},{"$f":"IF(Апрель[[#This Row],[Дата]]=\"\",\"\",SUMPRODUCT([1]Апрель!$E$4:$E$153*([1]Апрель!$G$4:$G$153=$O$4)*([1]Апрель!$D$4:$D$153=Апрель[[#This Row],[Дата]])))","v":0},{"$f":"IF(Апрель[[#This Row],[Дата]]=\"\",\"\",M15)","v":350},1338,1338,{"$f":"IFERROR(IF(W16=\"\",Апрель[[#This Row],[Показание счетчика моточасов  спецоборудования на конец дня, м/ч]],Апрель[[#This Row],[Показание счетчика моточасов  спецоборудования на конец дня, м/ч]]+1)-Апрель[[#This Row],[Показание счетчика моточасов спецоборудования на начало дня, м/ч]],\"\")","v":0},null,{"$f":"IF(Апрель[[#This Row],[Работа спецоборудования за день, м/ч]]=\"\",\"\",Апрель[[#This Row],[Работа спецоборудования за день, м/ч]]*$Z$2)","v":0},{"$f":"IFERROR(IF(VLOOKUP([Дата],S$2:U$3,3),IFERROR(IF(U16=\"\",Апрель[[#This Row],[Выдано топливо, литр]],Апрель[[#This Row],[Выдано топливо, литр]]+U16)+Апрель[[#This Row],[Остаток топлива в баке на начало дня, литр]]-Апрель[[#This Row],[Фактический расход топлива, литр]],\"\"),\"\"),\"\")","v":350},{"$f":"IFERROR(ROUND((Апрель[[#This Row],[Пройдено за день, км]]*0.01*$Y$2+Апрель[[#This Row],[Расход топлива на работу спецоборудования, литр]]),3)+X16,\"\")","v":0},{"$f":"IFERROR(IF(Апрель[[#Totals],[Выдано топливо, литр]]=0,0,(ROUND(Апрель[[#This Row],[Расход топлива по норме, литр]]/IF(DAY([Дата])<=18,$W$2,$W$3),0)))+Y16,)","v":0},{"$f":"IFERROR(IF(Апрель[[#Totals],[Выдано топливо, литр]]=0,0,(ROUND(Апрель[[#This Row],[Расход топлива по норме, литр]]/VLOOKUP([Дата],S$2:W$3,5),0)))+Y16,)","v":0},null,{"$f":"Апрель[[#This Row],[Дата]]","v":"2018-04-10"},null,null,null,null,null,null,null,{"$f":"Апрель[[#This Row],[Дата]]","v":"2018-04-10"}]
[{"$f":"IFERROR(DATEVALUE((COUNT($A$6:A16)+1)&$P$1&$I$4),\"\")","v":"2018-04-11"},null,23600,23600,{"$f":"IFERROR(Апрель[[#This Row],[Показание одометра машины на конец дня, км]]-Апрель[[#This Row],[Показание одометра машины на начало дня, км]]+T17,\"\")","v":0},{"$f":"IF(Апрель[[#This Row],[Дата]]=\"\",\"\",SUMPRODUCT([1]Апрель!$E$4:$E$153*([1]Апрель!$G$4:$G$153=$O$4)*([1]Апрель!$D$4:$D$153=Апрель[[#This Row],[Дата]])))","v":0},{"$f":"IF(Апрель[[#This Row],[Дата]]=\"\",\"\",M16)","v":350},1338,1338,{"$f":"IFERROR(IF(W17=\"\",Апрель[[#This Row],[Показание счетчика моточасов  спецоборудования на конец дня, м/ч]],Апрель[[#This Row],[Показание счетчика моточасов  спецоборудования на конец дня, м/ч]]+1)-Апрель[[#This Row],[Показание счетчика моточасов спецоборудования на начало дня, м/ч]],\"\")","v":0},null,{"$f":"IF(Апрель[[#This Row],[Работа спецоборудования за день, м/ч]]=\"\",\"\",Апрель[[#This Row],[Работа спецоборудования за день, м/ч]]*$Z$2)","v":0},{"$f":"IFERROR(IF(VLOOKUP([Дата],S$2:U$3,3),IFERROR(IF(U17=\"\",Апрель[[#This Row],[Выдано топливо, литр]],Апрель[[#This Row],[Выдано топливо, литр]]+U17)+Апрель[[#This Row],[Остаток топлива в баке на начало дня, литр]]-Апрель[[#This Row],[Фактический расход топлива, литр]],\"\"),\"\"),\"\")","v":350},{"$f":"IFERROR(ROUND((Апрель[[#This Row],[Пройдено за день, км]]*0.01*$Y$2+Апрель[[#This Row],[Расход топлива на работу спецоборудования, литр]]),3)+X17,\"\")","v":0},{"$f":"IFERROR(IF(Апрель[[#Totals],[Выдано топливо, литр]]=0,0,(ROUND(Апрель[[#This Row],[Расход топлива по норме, литр]]/IF(DAY([Дата])<=18,$W$2,$W$3),0)))+Y17,)","v":0},{"$f":"IFERROR(IF(Апрель[[#Totals],[Выдано топливо, литр]]=0,0,(ROUND(Апрель[[#This Row],[Расход топлива по норме, литр]]/VLOOKUP([Дата],S$2:W$3,5),0)))+Y17,)","v":0},null,{"$f":"Апрель[[#This Row],[Дата]]","v":"2018-04-11"},null,null,null,null,null,null,null,{"$f":"Апрель[[#This Row],[Дата]]","v":"2018-04-11"}]
[{"$f":"IFERROR(DATEVALUE((COUNT($A$6:A17)+1)&$P$1&$I$4),\"\")","v":"2018-04-12"},null,23600,23600,{"$f":"IFERROR(Апрель[[#This Row],[Показание одометра машины на конец дня, км]]-Апрель[[#This Row],[Показание одометра машины на начало дня, км]]+T18,\"\")","v":0},{"$f":"IF(Апрель[[#This Row],[Дата]]=\"\",\"\",SUMPRODUCT([1]Апрель!$E$4:$E$153*([1]Апрель!$G$4:$G$153=$O$4)*([1]Апрель!$D$4:$D$153=Апрель[[#This Row],[Дата]])))","v":0},{"$f":"IF(Апрель[[#This Row],[Дата]]=\"\",\"\",M17)","v":350},1338,1338,{"$f":"IFERROR(IF(W18=\"\",Апрель[[#This Row],[Показание счетчика моточасов  спецоборудования на конец дня, м/ч]],Апрель[[#This Row],[Показание счетчика моточасов  спецоборудования на конец дня, м/ч]]+1)-Апрель[[#This Row],[Показание счетчика моточасов спецоборудования на начало дня, м/ч]],\"\")","v":0},null,{"$f":"IF(Апрель[[#This Row],[Работа спецоборудования за день, м/ч]]=\"\",\"\",Апрель[[#This Row],[Работа спецоборудования за день, м/ч]]*$Z$2)","v":0},{"$f":"IFERROR(IF(VLOOKUP([Дата],S$2:U$3,3),IFERROR(IF(U18=\"\",Апрель[[#This Row],[Выдано топливо, литр]],Апрель[[#This Row],[Выдано топливо, литр]]+U18)+Апрель[[#This Row],[Остаток топлива в баке на начало дня, литр]]-Апрель[[#This Row],[Фактический расход топлива, литр]],\"\"),\"\"),\"\")","v":350},{"$f":"IFERROR(ROUND((Апрель[[#This Row],[Пройдено за день, км]]*0.01*$Y$2+Апрель[[#This Row],[Расход топлива на работу спецоборудования, литр]]),3)+X18,\"\")","v":0},{"$f":"IFERROR(IF(Апрель[[#Totals],[Выдано топливо, литр]]=0,0,(ROUND(Апрель[[#This Row],[Расход топлива по норме, литр]]/IF(DAY([Дата])<=18,$W$2,$W$3),0)))+Y18,)","v":0},{"$f":"IFERROR(IF(Апрель[[#Totals],[Выдано топливо, литр]]=0,0,(ROUND(Апрель[[#This Row],[Расход топлива по норме, литр]]/VLOOKUP([Дата],S$2:W$3,5),0)))+Y18,)","v":0},null,{"$f":"Апрель[[#This Row],[Дата]]","v":"2018-04-12"},null,null,null,null,null,null,null,{"$f":"Апрель[[#This Row],[Дата]]","v":"2018-04-12"}]
[{"$f":"IFERROR(DATEVALUE((COUNT($A$6:A18)+1)&$P$1&$I$4),\"\")","v":"2018-04-13"},null,23600,23600,{"$f":"IFERROR(Апрель[[#This Row],[Показание одометра машины на конец дня, км]]-Апрель[[#This Row],[Показание одометра машины на начало дня, км]]+T19,\"\")","v":0},{"$f":"IF(Апрель[[#This Row],[Дата]]=\"\",\"\",SUMPRODUCT([1]Апрель!$E$4:$E$153*([1]Апрель!$G$4:$G$153=$O$4)*([1]Апрель!$D$4:$D$153=Апрель[[#This Row],[Дата]])))","v":0},{"$f":"IF(Апрель[[#This Row],[Дата]]=\"\",\"\",M18)","v":350},1338,1338,{"$f":"IFERROR(IF(W19=\"\",Апрель[[#This Row],[Показание счетчика моточасов  спецоборудования на конец дня, м/ч]],Апрель[[#This Row],[Показание счетчика моточасов  спецоборудования на конец дня, м/ч]]+1)-Апрель[[#This Row],[Показание счетчика моточасов спецоборудования на начало дня, м/ч]],\"\")","v":0},null,{"$f":"IF(Апрель[[#This Row],[Работа спецоборудования за день, м/ч]]=\"\",\"\",Апрель[[#This Row],[Работа спецоборудования за день, м/ч]]*$Z$2)","v":0},{"$f":"IFERROR(IF(VLOOKUP([Дата],S$2:U$3,3),IFERROR(IF(U19=\"\",Апрель[[#This Row],[Выдано топливо, литр]],Апрель[[#This Row],[Выдано топливо, литр]]+U19)+Апрель[[#This Row],[Остаток топлива в баке на начало дня, литр]]-Апрель[[#This Row],[Фактический расход топлива, литр]],\"\"),\"\"),\"\")","v":350},{"$f":"IFERROR(ROUND((Апрель[[#This Row],[Пройдено за день, км]]*0.01*$Y$2+Апрель[[#This Row],[Расход топлива на работу спецоборудования, литр]]),3)+X19,\"\")","v":0},{"$f":"IFERROR(IF(Апрель[[#Totals],[Выдано топливо, литр]]=0,0,(ROUND(Апрель[[#This Row],[Расход топлива по норме, литр]]/IF(DAY([Дата])<=18,$W$2,$W$3),0)))+Y19,)","v":0},{"$f":"IFERROR(IF(Апрель[[#Totals],[Выдано топливо, литр]]=0,0,(ROUND(Апрель[[#This Row],[Расход топлива по норме, литр]]/VLOOKUP([Дата],S$2:W$3,5),0)))+Y19,)","v":0},null,{"$f":"Апрель[[#This Row],[Дата]]","v":"2018-04-13"},null,null,null,null,null,null,null,{"$f":"Апрель[[#This Row],[Дата]]","v":"2018-04-13"}]
[{"$f":"IFERROR(DATEVALUE((COUNT($A$6:A19)+1)&$P$1&$I$4),\"\")","v":"2018-04-14"},null,23600,23600,{"$f":"IFERROR(Апрель[[#This Row],[Показание одометра машины на конец дня, км]]-Апрель[[#This Row],[Показание одометра машины на начало дня, км]]+T20,\"\")","v":0},{"$f":"IF(Апрель[[#This Row],[Дата]]=\"\",\"\",SUMPRODUCT([1]Апрель!$E$4:$E$153*([1]Апрель!$G$4:$G$153=$O$4)*([1]Апрель!$D$4:$D$153=Апрель[[#This Row],[Дата]])))","v":0},{"$f":"IF(Апрель[[#This Row],[Дата]]=\"\",\"\",M19)","v":350},1338,1338,{"$f":"IFERROR(IF(W20=\"\",Апрель[[#This Row],[Показание счетчика моточасов  спецоборудования на конец дня, м/ч]],Апрель[[#This Row],[Показание счетчика моточасов  спецоборудования на конец дня, м/ч]]+1)-Апрель[[#This Row],[Показание счетчика моточасов спецоборудования на начало дня, м/ч]],\"\")","v":0},null,{"$f":"IF(Апрель[[#This Row],[Работа спецоборудования за день, м/ч]]=\"\",\"\",Апрель[[#This Row],[Работа спецоборудования за день, м/ч]]*$Z$2)","v":0},{"$f":"IFERROR(IF(VLOOKUP([Дата],S$2:U$3,3),IFERROR(IF(U20=\"\",Апрель[[#This Row],[Выдано топливо, литр]],Апрель[[#This Row],[Выдано топливо, литр]]+U20)+Апрель[[#This Row],[Остаток топлива в баке на начало дня, литр]]-Апрель[[#This Row],[Фактический расход топлива, литр]],\"\"),\"\"),\"\")","v":350},{"$f":"IFERROR(ROUND((Апрель[[#This Row],[Пройдено за день, км]]*0.01*$Y$2+Апрель[[#This Row],[Расход топлива на работу спецоборудования, литр]]),3)+X20,\"\")","v":0},{"$f":"IFERROR(IF(Апрель[[#Totals],[Выдано топливо, литр]]=0,0,(ROUND(Апрель[[#This Row],[Расход топлива по норме, литр]]/IF(DAY([Дата])<=18,$W$2,$W$3),0)))+Y20,)","v":0},{"$f":"IFERROR(IF(Апрель[[#Totals],[Выдано топливо, литр]]=0,0,(ROUND(Апрель[[#This Row],[Расход топлива по норме, литр]]/VLOOKUP([Дата],S$2:W$3,5),0)))+Y20,)","v":0},null,{"$f":"Апрель[[#This Row],[Дата]]","v":"2018-04-14"},null,null,null,null,null,null,null,{"$f":"Апрель[[#This Row],[Дата]]","v":"2018-04-14"}]
[{"$f":"IFERROR(DATEVALUE((COUNT($A$6:A20)+1)&$P$1&$I$4),\"\")","v":"2018-04-15"},"Ильичев Ю.Ф.",23600,23700,{"$f":"IFERROR(Апрель[[#This Row],[Показание одометра машины на конец дня, км]]-Апрель[[#This Row],[Показание одометра машины на начало дня, км]]+T21,\"\")","v":100},{"$f":"IF(Апрель[[#This Row],[Дата]]=\"\",\"\",SUMPRODUCT([1]Апрель!$E$4:$E$153*([1]Апрель!$G$4:$G$153=$O$4)*([1]Апрель!$D$4:$D$153=Апрель[[#This Row],[Дата]])))","v":0},{"$f":"IF(Апрель[[#This Row],[Дата]]=\"\",\"\",M20)","v":350},1338,1348,{"$f":"IFERROR(IF(W21=\"\",Апрель[[#This Row],[Показание счетчика моточасов  спецоборудования на конец дня, м/ч]],Апрель[[#This Row],[Показание счетчика моточасов  спецоборудования на конец дня, м/ч]]+1)-Апрель[[#This Row],[Показание счетчика моточасов спецоборудования на начало дня, м/ч]],\"\")","v":10},5,{"$f":"IF(Апрель[[#This Row],[Работа спецоборудования за день, м/ч]]=\"\",\"\",Апрель[[#This Row],[Работа спецоборудования за день, м/ч]]*$Z$2)","v":50},{"$f":"IFERROR(IF(VLOOKUP([Дата],S$2:U$3,3),IFERROR(IF(U21=\"\",Апрель[[#This Row],[Выдано топливо, литр]],Апрель[[#This Row],[Выдано топливо, литр]]+U21)+Апрель[[#This Row],[Остаток топлива в баке на начало дня, литр]]-Апрель[[#This Row],[Фактический расход топлива, литр]],\"\"),\"\"),\"\")","v":350},{"$f":"IFERROR(ROUND((Апрель[[#This Row],[Пройдено за день, км]]*0.01*$Y$2+Апрель[[#This Row],[Расход топлива на работу спецоборудования, литр]]),3)+X21,\"\")","v":92.6},{"$f":"IFERROR(IF(Апрель[[#Totals],[Выдано топливо, литр]]=0,0,(ROUND(Апрель[[#This Row],[Расход топлива по норме, литр]]/IF(DAY([Дата])<=18,$W$2,$W$3),0)))+Y21,)","v":0},{"$f":"IFERROR(IF(Апрель[[#Totals],[Выдано топливо, литр]]=0,0,(ROUND(Апрель[[#This Row],[Расход топлива по норме, литр]]/VLOOKUP([Дата],S$2:W$3,5),0)))+Y21,)","v":93},null,{"$f":"Апрель[[#This Row],[Дата]]","v":"2018-04-15"},null,null,null,null,null,null,null,{"$f":"Апрель[[#This Row],[Дата]]","v":"2018-04-15"}]
[{"$f":"IFERROR(DATEVALUE((COUNT($A$6:A21)+1)&$P$1&$I$4),\"\")","v":"2018-04-16"},"Ильичев Ю.Ф.",23700,23810,{"$f":"IFERROR(Апрель[[#This Row],[Показание одометра машины на конец дня, км]]-Апрель[[#This Row],[Показание одометра машины на начало дня, км]]+T22,\"\")","v":110},{"$f":"IF(Апрель[[#This Row],[Дата]]=\"\",\"\",SUMPRODUCT([1]Апрель!$E$4:$E$153*([1]Апрель!$G$4:$G$153=$O$4)*([1]Апрель!$D$4:$D$153=Апрель[[#This Row],[Дата]])))","v":0},{"$f":"IF(Апрель[[#This Row],[Дата]]=\"\",\"\",M21)","v":350},1348,1358,{"$f":"IFERROR(IF(W22=\"\",Апрель[[#This Row],[Показание счетчика моточасов  спецоборудования на конец дня, м/ч]],Апрель[[#This Row],[Показание счетчика моточасов  спецоборудования на конец дня, м/ч]]+1)-Апрель[[#This Row],[Показание счетчика моточасов спецоборудования на начало дня, м/ч]],\"\")","v":10},5,{"$f":"IF(Апрель[[#This Row],[Работа спецоборудования за день, м/ч]]=\"\",\"\",Апрель[[#This Row],[Работа спецоборудования за день, м/ч]]*$Z$2)","v":50},{"$f":"IFERROR(IF(VLOOKUP([Дата],S$2:U$3,3),IFERROR(IF(U22=\"\",Апрель[[#This Row],[Выдано топливо, литр]],Апрель[[#This Row],[Выдано топливо, литр]]+U22)+Апрель[[#This Row],[Остаток топлива в баке на начало дня, литр]]-Апрель[[#This Row],[Фактический расход топлива, литр]],\"\"),\"\"),\"\")","v":350},{"$f":"IFERROR(ROUND((Апрель[[#This Row],[Пройдено за день, км]]*0.01*$Y$2+Апрель[[#This Row],[Расход топлива на работу спецоборудования, литр]]),3)+X22,\"\")","v":96.86},{"$f":"IFERROR(IF(Апрель[[#Totals],[Выдано топливо, литр]]=0,0,(ROUND(Апрель[[#This Row],[Расход топлива по норме, литр]]/IF(DAY([Дата])<=18,$W$2,$W$3),0)))+Y22,)","v":0},{"$f":"IFERROR(IF(Апрель[[#Totals],[Выдано топливо, литр]]=0,0,(ROUND(Апрель[[#This Row],[Расход топлива по норме, литр]]/VLOOKUP([Дата],S$2:W$3,5),0)))+Y22,)","v":97},null,{"$f":"Апрель[[#This Row],[Дата]]","v":"2018-04-16"},null,null,null,null,null,null,null,{"$f":"Апрель[[#This Row],[Дата]]","v":"2018-04-16"}]
[{"$f":"IFERROR(DATEVALUE((COUNT($A$6:A22)+1)&$P$1&$I$4),\"\")","v":"2018-04-17"},"Ильичев Ю.Ф.",23810,23970,{"$f":"IFERROR(Апрель[[#This Row],[Показание одометра машины на конец дня, км]]-Апрель[[#This Row],[Показание одометра машины на начало дня, км]]+T23,\"\")","v":160},{"$f":"IF(Апрель[[#This Row],[Дата]]=\"\",\"\",SUMPRODUCT([1]Апрель!$E$4:$E$153*([1]Апрель!$G$4:$G$153=$O$4)*([1]Апрель!$D$4:$D$153=Апрель[[#This Row],[Дата]])))","v":0},{"$f":"IF(Апрель[[#This Row],[Дата]]=\"\",\"\",M22)","v":350},1358,1368,{"$f":"IFERROR(IF(W23=\"\",Апрель[[#This Row],[Показание счетчика моточасов  спецоборудования на конец дня, м/ч]],Апрель[[#This Row],[Показание счетчика моточасов  спецоборудования на конец дня, м/ч]]+1)-Апрель[[#This Row],[Показание счетчика моточасов спецоборудования на начало дня, м/ч]],\"\")","v":10},5,{"$f":"IF(Апрель[[#This Row],[Работа спецоборудования за день, м/ч]]=\"\",\"\",Апрель[[#This Row],[Работа спецоборудования за день, м/ч]]*$Z$2)","v":50},{"$f":"IFERROR(IF(VLOOKUP([Дата],S$2:U$3,3),IFERROR(IF(U23=\"\",Апрель[[#This Row],[Выдано топливо, литр]],Апрель[[#This Row],[Выдано топливо, литр]]+U23)+Апрель[[#This Row],[Остаток топлива в баке на начало дня, литр]]-Апрель[[#This Row],[Фактический расход топлива, литр]],\"\"),\"\"),\"\")","v":350},{"$f":"IFERROR(ROUND((Апрель[[#This Row],[Пройдено за день, км]]*0.01*$Y$2+Апрель[[#This Row],[Расход топлива на работу спецоборудования, литр]]),3)+X23,\"\")","v":118.16},{"$f":"IFERROR(IF(Апрель[[#Totals],[Выдано топливо, литр]]=0,0,(ROUND(Апрель[[#This Row],[Расход топлива по норме, литр]]/IF(DAY([Дата])<=18,$W$2,$W$3),0)))+Y23,)","v":0},{"$f":"IFERROR(IF(Апрель[[#Totals],[Выдано топливо, литр]]=0,0,(ROUND(Апрель[[#This Row],[Расход топлива по норме, литр]]/VLOOKUP([Дата],S$2:W$3,5),0)))+Y23,)","v":118},null,{"$f":"Апрель[[#This Row],[Дата]]","v":"2018-04-17"},null,null,null,null,null,null,null,{"$f":"Апрель[[#This Row],[Дата]]","v":"2018-04-17"}]
[{"$f":"IFERROR(DATEVALUE((COUNT($A$6:A23)+1)&$P$1&$I$4),\"\")","v":"2018-04-18"},"Ильичев Ю.Ф.",23970,24080,{"$f":"IFERROR(Апрель[[#This Row],[Показание одометра машины на конец дня, км]]-Апрель[[#This Row],[Показание одометра машины на начало дня, км]]+T24,\"\")","v":110},{"$f":"IF(Апрель[[#This Row],[Дата]]=\"\",\"\",SUMPRODUCT([1]Апрель!$E$4:$E$153*([1]Апрель!$G$4:$G$153=$O$4)*([1]Апрель!$D$4:$D$153=Апрель[[#This Row],[Дата]])))","v":270},{"$f":"IF(Апрель[[#This Row],[Дата]]=\"\",\"\",M23)","v":350},1368,1378,{"$f":"IFERROR(IF(W24=\"\",Апрель[[#This Row],[Показание счетчика моточасов  спецоборудования на конец дня, м/ч]],Апрель[[#This Row],[Показание счетчика моточасов  спецоборудования на конец дня, м/ч]]+1)-Апрель[[#This Row],[Показание счетчика моточасов спецоборудования на начало дня, м/ч]],\"\")","v":10},5,{"$f":"IF(Апрель[[#This Row],[Работа спецоборудования за день, м/ч]]=\"\",\"\",Апрель[[#This Row],[Работа спецоборудования за день, м/ч]]*$Z$2)","v":50},{"$f":"IFERROR(IF(VLOOKUP([Дата],S$2:U$3,3),IFERROR(IF(U24=\"\",Апрель[[#This Row],[Выдано топливо, литр]],Апрель[[#This Row],[Выдано топливо, литр]]+U24)+Апрель[[#This Row],[Остаток топлива в баке на начало дня, литр]]-Апрель[[#This Row],[Фактический расход топлива, литр]],\"\"),\"\"),\"\")","v":620},{"$f":"IFERROR(ROUND((Апрель[[#This Row],[Пройдено за день, км]]*0.01*$Y$2+Апрель[[#This Row],[Расход топлива на работу спецоборудования, литр]]),3)+X24,\"\")","v":96.86},{"$f":"IFERROR(IF(Апрель[[#Totals],[Выдано топливо, литр]]=0,0,(ROUND(Апрель[[#This Row],[Расход топлива по норме, литр]]/IF(DAY([Дата])<=18,$W$2,$W$3),0)))+Y24,)","v":0},{"$f":"IFERROR(IF(Апрель[[#Totals],[Выдано топливо, литр]]=0,0,(ROUND(Апрель[[#This Row],[Расход топлива по норме, литр]]/VLOOKUP([Дата],S$2:W$3,5),0)))+Y24,)","v":97},null,{"$f":"Апрель[[#This Row],[Дата]]","v":"2018-04-18"},null,null,null,null,null,null,null,{"$f":"Апрель[[#This Row],[Дата]]","v":"2018-04-18"}]
[{"$f":"IFERROR(DATEVALUE((COUNT($A$6:A24)+1)&$P$1&$I$4),\"\")","v":"2018-04-19"},"Ильичев Ю.Ф.",24080,24230,{"$f":"IFERROR(Апрель[[#This Row],[Показание одометра машины на конец дня, км]]-Апрель[[#This Row],[Показание одометра машины на начало дня, км]]+T25,\"\")","v":150},{"$f":"IF(Апрель[[#This Row],[Дата]]=\"\",\"\",SUMPRODUCT([1]Апрель!$E$4:$E$153*([1]Апрель!$G$4:$G$153=$O$4)*([1]Апрель!$D$4:$D$153=Апрель[[#This Row],[Дата]])))","v":0},{"$f":"IF(Апрель[[#This Row],[Дата]]=\"\",\"\",M24)","v":620},1378,1386,{"$f":"IFERROR(IF(W25=\"\",Апрель[[#This Row],[Показание счетчика моточасов  спецоборудования на конец дня, м/ч]],Апрель[[#This Row],[Показание счетчика моточасов  спецоборудования на конец дня, м/ч]]+1)-Апрель[[#This Row],[Показание счетчика моточасов спецоборудования на начало дня, м/ч]],\"\")","v":8},4,{"$f":"IF(Апрель[[#This Row],[Работа спецоборудования за день, м/ч]]=\"\",\"\",Апрель[[#This Row],[Работа спецоборудования за день, м/ч]]*$Z$2)","v":40},{"$f":"IFERROR(IF(VLOOKUP([Дата],S$2:U$3,3),IFERROR(IF(U25=\"\",Апрель[[#This Row],[Выдано топливо, литр]],Апрель[[#This Row],[Выдано топливо, литр]]+U25)+Апрель[[#This Row],[Остаток топлива в баке на начало дня, литр]]-Апрель[[#This Row],[Фактический расход топлива, литр]],\"\"),\"\"),\"\")","v":516},{"$f":"IFERROR(ROUND((Апрель[[#This Row],[Пройдено за день, км]]*0.01*$Y$2+Апрель[[#This Row],[Расход топлива на работу спецоборудования, литр]]),3)+X25,\"\")","v":103.9},{"$f":"IFERROR(IF(Апрель[[#Totals],[Выдано топливо, литр]]=0,0,(ROUND(Апрель[[#This Row],[Расход топлива по норме, литр]]/IF(DAY([Дата])<=18,$W$2,$W$3),0)))+Y25,)","v":104},{"$f":"IFERROR(IF(Апрель[[#Totals],[Выдано топливо, литр]]=0,0,(ROUND(Апрель[[#This Row],[Расход топлива по норме, литр]]/VLOOKUP([Дата],S$2:W$3,5),0)))+Y25,)","v":104},null,{"$f":"Апрель[[#This Row],[Дата]]","v":"2018-04-19"},null,null,null,null,null,null,null,{"$f":"Апрель[[#This Row],[Дата]]","v":"2018-04-19"}]
[{"$f":"IFERROR(DATEVALUE((COUNT($A$6:A25)+1)&$P$1&$I$4),\"\")","v":"2018-04-20"},"Ильичев Ю.Ф.",24230,24350,{"$f":"IFERROR(Апрель[[#This Row],[Показание одометра машины на конец дня, км]]-Апрель[[#This Row],[Показание одометра машины на начало дня, км]]+T26,\"\")","v":120},{"$f":"IF(Апрель[[#This Row],[Дата]]=\"\",\"\",SUMPRODUCT([1]Апрель!$E$4:$E$153*([1]Апрель!$G$4:$G$153=$O$4)*([1]Апрель!$D$4:$D$153=Апрель[[#This Row],[Дата]])))","v":0},{"$f":"IF(Апрель[[#This Row],[Дата]]=\"\",\"\",M25)","v":516},1386,1394,{"$f":"IFERROR(IF(W26=\"\",Апрель[[#This Row],[Показание счетчика моточасов  спецоборудования на конец дня, м/ч]],Апрель[[#This Row],[Показание счетчика моточасов  спецоборудования на конец дня, м/ч]]+1)-Апрель[[#This Row],[Показание счетчика моточасов спецоборудования на начало дня, м/ч]],\"\")","v":8},4,{"$f":"IF(Апрель[[#This Row],[Работа спецоборудования за день, м/ч]]=\"\",\"\",Апрель[[#This Row],[Работа спецоборудования за день, м/ч]]*$Z$2)","v":40},{"$f":"IFERROR(IF(VLOOKUP([Дата],S$2:U$3,3),IFERROR(IF(U26=\"\",Апрель[[#This Row],[Выдано топливо, литр]],Апрель[[#This Row],[Выдано топливо, литр]]+U26)+Апрель[[#This Row],[Остаток топлива в баке на начало дня, литр]]-Апрель[[#This Row],[Фактический расход топлива, литр]],\"\"),\"\"),\"\")","v":525},{"$f":"IFERROR(ROUND((Апрель[[#This Row],[Пройдено за день, км]]*0.01*$Y$2+Апрель[[#This Row],[Расход топлива на работу спецоборудования, литр]]),3)+X26,\"\")","v":91.12},{"$f":"IFERROR(IF(Апрель[[#Totals],[Выдано топливо, литр]]=0,0,(ROUND(Апрель[[#This Row],[Расход топлива по норме, литр]]/IF(DAY([Дата])<=18,$W$2,$W$3),0)))+Y26,)","v":91},{"$f":"IFERROR(IF(Апрель[[#Totals],[Выдано топливо, литр]]=0,0,(ROUND(Апрель[[#This Row],[Расход топлива по норме, литр]]/VLOOKUP([Дата],S$2:W$3,5),0)))+Y26,)","v":91},null,{"$f":"Апрель[[#This Row],[Дата]]","v":"2018-04-20"},null,null,100,null,null,null,null,{"$f":"Апрель[[#This Row],[Дата]]","v":"2018-04-20"}]
[{"$f":"IFERROR(DATEVALUE((COUNT($A$6:A26)+1)&$P$1&$I$4),\"\")","v":"2018-04-21"},"Ильичев Ю.Ф.",24350,24480,{"$f":"IFERROR(Апрель[[#This Row],[Показание одометра машины на конец дня, км]]-Апрель[[#This Row],[Показание одометра машины на начало дня, км]]+T27,\"\")","v":130},{"$f":"IF(Апрель[[#This Row],[Дата]]=\"\",\"\",SUMPRODUCT([1]Апрель!$E$4:$E$153*([1]Апрель!$G$4:$G$153=$O$4)*([1]Апрель!$D$4:$D$153=Апрель[[#This Row],[Дата]])))","v":0},{"$f":"IF(Апрель[[#This Row],[Дата]]=\"\",\"\",M26)","v":525},1394,1404,{"$f":"IFERROR(IF(W27=\"\",Апрель[[#This Row],[Показание счетчика моточасов  спецоборудования на конец дня, м/ч]],Апрель[[#This Row],[Показание счетчика моточасов  спецоборудования на конец дня, м/ч]]+1)-Апрель[[#This Row],[Показание счетчика моточасов спецоборудования на начало дня, м/ч]],\"\")","v":10},5,{"$f":"IF(Апрель[[#This Row],[Работа спецоборудования за день, м/ч]]=\"\",\"\",Апрель[[#This Row],[Работа спецоборудования за день, м/ч]]*$Z$2)","v":50},{"$f":"IFERROR(IF(VLOOKUP([Дата],S$2:U$3,3),IFERROR(IF(U27=\"\",Апрель[[#This Row],[Выдано топливо, литр]],Апрель[[#This Row],[Выдано топливо, литр]]+U27)+Апрель[[#This Row],[Остаток топлива в баке на начало дня, литр]]-Апрель[[#This Row],[Фактический расход топлива, литр]],\"\"),\"\"),\"\")","v":420},{"$f":"IFERROR(ROUND((Апрель[[#This Row],[Пройдено за день, км]]*0.01*$Y$2+Апрель[[#This Row],[Расход топлива на работу спецоборудования, литр]]),3)+X27,\"\")","v":105.38},{"$f":"IFERROR(IF(Апрель[[#Totals],[Выдано топливо, литр]]=0,0,(ROUND(Апрель[[#This Row],[Расход топлива по норме, литр]]/IF(DAY([Дата])<=18,$W$2,$W$3),0)))+Y27,)","v":105},{"$f":"IFERROR(IF(Апрель[[#Totals],[Выдано топливо, литр]]=0,0,(ROUND(Апрель[[#This Row],[Расход топлива по норме, литр]]/VLOOKUP([Дата],S$2:W$3,5),0)))+Y27,)","v":105},null,{"$f":"Апрель[[#This Row],[Дата]]","v":"2018-04-21"},null,null,null,null,null,null,null,{"$f":"Апрель[[#This Row],[Дата]]","v":"2018-04-21"}]
[{"$f":"IFERROR(DATEVALUE((COUNT($A$6:A27)+1)&$P$1&$I$4),\"\")","v":"2018-04-22"},"Ильичев Ю.Ф.",24480,24610,{"$f":"IFERROR(Апрель[[#This Row],[Показание одометра машины на конец дня, км]]-Апрель[[#This Row],[Показание одометра машины на начало дня, км]]+T28,\"\")","v":130},{"$f":"IF(Апрель[[#This Row],[Дата]]=\"\",\"\",SUMPRODUCT([1]Апрель!$E$4:$E$153*([1]Апрель!$G$4:$G$153=$O$4)*([1]Апрель!$D$4:$D$153=Апрель[[#This Row],[Дата]])))","v":310},{"$f":"IF(Апрель[[#This Row],[Дата]]=\"\",\"\",M27)","v":420},1404,1412,{"$f":"IFERROR(IF(W28=\"\",Апрель[[#This Row],[Показание счетчика моточасов  спецоборудования на конец дня, м/ч]],Апрель[[#This Row],[Показание счетчика моточасов  спецоборудования на конец дня, м/ч]]+1)-Апрель[[#This Row],[Показание счетчика моточасов спецоборудования на начало дня, м/ч]],\"\")","v":8},4,{"$f":"IF(Апрель[[#This Row],[Работа спецоборудования за день, м/ч]]=\"\",\"\",Апрель[[#This Row],[Работа спецоборудования за день, м/ч]]*$Z$2)","v":40},{"$f":"IFERROR(IF(VLOOKUP([Дата],S$2:U$3,3),IFERROR(IF(U28=\"\",Апрель[[#This Row],[Выдано топливо, литр]],Апрель[[#This Row],[Выдано топливо, литр]]+U28)+Апрель[[#This Row],[Остаток топлива в баке на начало дня, литр]]-Апрель[[#This Row],[Фактический расход топлива, литр]],\"\"),\"\"),\"\")","v":535},{"$f":"IFERROR(ROUND((Апрель[[#This Row],[Пройдено за день, км]]*0.01*$Y$2+Апрель[[#This Row],[Расход топлива на работу спецоборудования, литр]]),3)+X28,\"\")","v":95.38},{"$f":"IFERROR(IF(Апрель[[#Totals],[Выдано топливо, литр]]=0,0,(ROUND(Апрель[[#This Row],[Расход топлива по норме, литр]]/IF(DAY([Дата])<=18,$W$2,$W$3),0)))+Y28,)","v":95},{"$f":"IFERROR(IF(Апрель[[#Totals],[Выдано топливо, литр]]=0,0,(ROUND(Апрель[[#This Row],[Расход топлива по норме, литр]]/VLOOKUP([Дата],S$2:W$3,5),0)))+Y28,)","v":95},null,{"$f":"Апрель[[#This Row],[Дата]]","v":"2018-04-22"},null,null,-100,null,null,null,null,{"$f":"Апрель[[#This Row],[Дата]]","v":"2018-04-22"}]
[{"$f":"IFERROR(DATEVALUE((COUNT($A$6:A28)+1)&$P$1&$I$4),\"\")","v":"2018-04-23"},"Ильичев Ю.Ф.",24610,24750,{"$f":"IFERROR(Апрель[[#This Row],[Показание одометра машины на конец дня, км]]-Апрель[[#This Row],[Показание одометра машины на начало дня, км]]+T29,\"\")","v":140},{"$f":"IF(Апрель[[#This Row],[Дата]]=\"\",\"\",SUMPRODUCT([1]Апрель!$E$4:$E$153*([1]Апрель!$G$4:$G$153=$O$4)*([1]Апрель!$D$4:$D$153=Апрель[[#This Row],[Дата]])))","v":0},{"$f":"IF(Апрель[[#This Row],[Дата]]=\"\",\"\",M28)","v":535},1412,1418,{"$f":"IFERROR(IF(W29=\"\",Апрель[[#This Row],[Показание счетчика моточасов  спецоборудования на конец дня, м/ч]],Апрель[[#This Row],[Показание счетчика моточасов  спецоборудования на конец дня, м/ч]]+1)-Апрель[[#This Row],[Показание счетчика моточасов спецоборудования на начало дня, м/ч]],\"\")","v":6},3,{"$f":"IF(Апрель[[#This Row],[Работа спецоборудования за день, м/ч]]=\"\",\"\",Апрель[[#This Row],[Работа спецоборудования за день, м/ч]]*$Z$2)","v":30},{"$f":"IFERROR(IF(VLOOKUP([Дата],S$2:U$3,3),IFERROR(IF(U29=\"\",Апрель[[#This Row],[Выдано топливо, литр]],Апрель[[#This Row],[Выдано топливо, литр]]+U29)+Апрель[[#This Row],[Остаток топлива в баке на начало дня, литр]]-Апрель[[#This Row],[Фактический расход топлива, литр]],\"\"),\"\"),\"\")","v":445},{"$f":"IFERROR(ROUND((Апрель[[#This Row],[Пройдено за день, км]]*0.01*$Y$2+Апрель[[#This Row],[Расход топлива на работу спецоборудования, литр]]),3)+X29,\"\")","v":89.64},{"$f":"IFERROR(IF(Апрель[[#Totals],[Выдано топливо, литр]]=0,0,(ROUND(Апрель[[#This Row],[Расход топлива по норме, литр]]/IF(DAY([Дата])<=18,$W$2,$W$3),0)))+Y29,)","v":90},{"$f":"IFERROR(IF(Апрель[[#Totals],[Выдано топливо, литр]]=0,0,(ROUND(Апрель[[#This Row],[Расход топлива по норме, литр]]/VLOOKUP([Дата],S$2:W$3,5),0)))+Y29,)","v":90},null,{"$f":"Апрель[[#This Row],[Дата]]","v":"2018-04-23"},null,null,null,null,null,null,null,{"$f":"Апрель[[#This Row],[Дата]]","v":"2018-04-23"}]
[{"$f":"IFERROR(DATEVALUE((COUNT($A$6:A29)+1)&$P$1&$I$4),\"\")","v":"2018-04-24"},"Ильичев Ю.Ф.",24750,24820,{"$f":"IFERROR(Апрель[[#This Row],[Показание одометра машины на конец дня, км]]-Апрель[[#This Row],[Показание одометра машины на начало дня, км]]+T30,\"\")","v":70},{"$f":"IF(Апрель[[#This Row],[Дата]]=\"\",\"\",SUMPRODUCT([1]Апрель!$E$4:$E$153*([1]Апрель!$G$4:$G$153=$O$4)*([1]Апрель!$D$4:$D$153=Апрель[[#This Row],[Дата]])))","v":0},{"$f":"IF(Апрель[[#This Row],[Дата]]=\"\",\"\",M29)","v":445},1418,1424,{"$f":"IFERROR(IF(W30=\"\",Апрель[[#This Row],[Показание счетчика моточасов  спецоборудования на конец дня, м/ч]],Апрель[[#This Row],[Показание счетчика моточасов  спецоборудования на конец дня, м/ч]]+1)-Апрель[[#This Row],[Показание счетчика моточасов спецоборудования на начало дня, м/ч]],\"\")","v":6},3,{"$f":"IF(Апрель[[#This Row],[Работа спецоборудования за день, м/ч]]=\"\",\"\",Апрель[[#This Row],[Работа спецоборудования за день, м/ч]]*$Z$2)","v":30},{"$f":"IFERROR(IF(VLOOKUP([Дата],S$2:U$3,3),IFERROR(IF(U30=\"\",Апрель[[#This Row],[Выдано топливо, литр]],Апрель[[#This Row],[Выдано топливо, литр]]+U30)+Апрель[[#This Row],[Остаток топлива в баке на начало дня, литр]]-Апрель[[#This Row],[Фактический расход топлива, литр]],\"\"),\"\"),\"\")","v":505},{"$f":"IFERROR(ROUND((Апрель[[#This Row],[Пройдено за день, км]]*0.01*$Y$2+Апрель[[#This Row],[Расход топлива на работу спецоборудования, литр]]),3)+X30,\"\")","v":59.82},{"$f":"IFERROR(IF(Апрель[[#Totals],[Выдано топливо, литр]]=0,0,(ROUND(Апрель[[#This Row],[Расход топлива по норме, литр]]/IF(DAY([Дата])<=18,$W$2,$W$3),0)))+Y30,)","v":60},{"$f":"IFERROR(IF(Апрель[[#Totals],[Выдано топливо, литр]]=0,0,(ROUND(Апрель[[#This Row],[Расход топлива по норме, литр]]/VLOOKUP([Дата],S$2:W$3,5),0)))+Y30,)","v":60},null,{"$f":"Апрель[[#This Row],[Дата]]","v":"2018-04-24"},null,null,120,null,null,null,null,{"$f":"Апрель[[#This Row],[Дата]]","v":"2018-04-24"}]
[{"$f":"IFERROR(DATEVALUE((COUNT($A$6:A30)+1)&$P$1&$I$4),\"\")","v":"2018-04-25"},"Ильичев Ю.Ф.",24820,24970,{"$f":"IFERROR(Апрель[[#This Row],[Показание одометра машины на конец дня, км]]-Апрель[[#This Row],[Показание одометра машины на начало дня, км]]+T31,\"\")","v":150},{"$f":"IF(Апрель[[#This Row],[Дата]]=\"\",\"\",SUMPRODUCT([1]Апрель!$E$4:$E$153*([1]Апрель!$G$4:$G$153=$O$4)*([1]Апрель!$D$4:$D$153=Апрель[[#This Row],[Дата]])))","v":0},{"$f":"IF(Апрель[[#This Row],[Дата]]=\"\",\"\",M30)","v":505},1424,1430,{"$f":"IFERROR(IF(W31=\"\",Апрель[[#This Row],[Показание счетчика моточасов  спецоборудования на конец дня, м/ч]],Апрель[[#This Row],[Показание счетчика моточасов  спецоборудования на конец дня, м/ч]]+1)-Апрель[[#This Row],[Показание счетчика моточасов спецоборудования на начало дня, м/ч]],\"\")","v":6},3,{"$f":"IF(Апрель[[#This Row],[Работа спецоборудования за день, м/ч]]=\"\",\"\",Апрель[[#This Row],[Работа спецоборудования за день, м/ч]]*$Z$2)","v":30},{"$f":"IFERROR(IF(VLOOKUP([Дата],S$2:U$3,3),IFERROR(IF(U31=\"\",Апрель[[#This Row],[Выдано топливо, литр]],Апрель[[#This Row],[Выдано топливо, литр]]+U31)+Апрель[[#This Row],[Остаток топлива в баке на начало дня, литр]]-Апрель[[#This Row],[Фактический расход топлива, литр]],\"\"),\"\"),\"\")","v":411},{"$f":"IFERROR(ROUND((Апрель[[#This Row],[Пройдено за день, км]]*0.01*$Y$2+Апрель[[#This Row],[Расход топлива на работу спецоборудования, литр]]),3)+X31,\"\")","v":93.9},{"$f":"IFERROR(IF(Апрель[[#Totals],[Выдано топливо, литр]]=0,0,(ROUND(Апрель[[#This Row],[Расход топлива по норме, литр]]/IF(DAY([Дата])<=18,$W$2,$W$3),0)))+Y31,)","v":94},{"$f":"IFERROR(IF(Апрель[[#Totals],[Выдано топливо, литр]]=0,0,(ROUND(Апрель[[#This Row],[Расход топлива по норме, литр]]/VLOOKUP([Дата],S$2:W$3,5),0)))+Y31,)","v":94},null,{"$f":"Апрель[[#This Row],[Дата]]","v":"2018-04-25"},null,null,null,null,null,null,null,{"$f":"Апрель[[#This Row],[Дата]]","v":"2018-04-25"}]
[{"$f":"IFERROR(DATEVALUE((COUNT($A$6:A31)+1)&$P$1&$I$4),\"\")","v":"2018-04-26"},"Ильичев Ю.Ф.",24970,25040,{"$f":"IFERROR(Апрель[[#This Row],[Показание одометра машины на конец дня, км]]-Апрель[[#This Row],[Показание одометра машины на начало дня, км]]+T32,\"\")","v":70},{"$f":"IF(Апрель[[#This Row],[Дата]]=\"\",\"\",SUMPRODUCT([1]Апрель!$E$4:$E$153*([1]Апрель!$G$4:$G$153=$O$4)*([1]Апрель!$D$4:$D$153=Апрель[[#This Row],[Дата]])))","v":280},{"$f":"IF(Апрель[[#This Row],[Дата]]=\"\",\"\",M31)","v":411},1430,1432,{"$f":"IFERROR(IF(W32=\"\",Апрель[[#This Row],[Показание счетчика моточасов  спецоборудования на конец дня, м/ч]],Апрель[[#This Row],[Показание счетчика моточасов  спецоборудования на конец дня, м/ч]]+1)-Апрель[[#This Row],[Показание счетчика моточасов спецоборудования на начало дня, м/ч]],\"\")","v":2},1,{"$f":"IF(Апрель[[#This Row],[Работа спецоборудования за день, м/ч]]=\"\",\"\",Апрель[[#This Row],[Работа спецоборудования за день, м/ч]]*$Z$2)","v":10},{"$f":"IFERROR(IF(VLOOKUP([Дата],S$2:U$3,3),IFERROR(IF(U32=\"\",Апрель[[#This Row],[Выдано топливо, литр]],Апрель[[#This Row],[Выдано топливо, литр]]+U32)+Апрель[[#This Row],[Остаток топлива в баке на начало дня, литр]]-Апрель[[#This Row],[Фактический расход топлива, литр]],\"\"),\"\"),\"\")","v":651},{"$f":"IFERROR(ROUND((Апрель[[#This Row],[Пройдено за день, км]]*0.01*$Y$2+Апрель[[#This Row],[Расход топлива на работу спецоборудования, литр]]),3)+X32,\"\")","v":39.82},{"$f":"IFERROR(IF(Апрель[[#Totals],[Выдано топливо, литр]]=0,0,(ROUND(Апрель[[#This Row],[Расход топлива по норме, литр]]/IF(DAY([Дата])<=18,$W$2,$W$3),0)))+Y32,)","v":40},{"$f":"IFERROR(IF(Апрель[[#Totals],[Выдано топливо, литр]]=0,0,(ROUND(Апрель[[#This Row],[Расход топлива по норме, литр]]/VLOOKUP([Дата],S$2:W$3,5),0)))+Y32,)","v":40},null,{"$f":"Апрель[[#This Row],[Дата]]","v":"2018-04-26"},null,null,null,null,null,null,null,{"$f":"Апрель[[#This Row],[Дата]]","v":"2018-04-26"}]
[{"$f":"IFERROR(DATEVALUE((COUNT($A$6:A32)+1)&$P$1&$I$4),\"\")","v":"2018-04-27"},"Ильичев Ю.Ф.",25040,25210,{"$f":"IFERROR(Апрель[[#This Row],[Показание одометра машины на конец дня, км]]-Апрель[[#This Row],[Показание одометра машины на начало дня, км]]+T33,\"\")","v":170},{"$f":"IF(Апрель[[#This Row],[Дата]]=\"\",\"\",SUMPRODUCT([1]Апрель!$E$4:$E$153*([1]Апрель!$G$4:$G$153=$O$4)*([1]Апрель!$D$4:$D$153=Апрель[[#This Row],[Дата]])))","v":0},{"$f":"IF(Апрель[[#This Row],[Дата]]=\"\",\"\",M32)","v":651},1432,1438,{"$f":"IFERROR(IF(W33=\"\",Апрель[[#This Row],[Показание счетчика моточасов  спецоборудования на конец дня, м/ч]],Апрель[[#This Row],[Показание счетчика моточасов  спецоборудования на конец дня, м/ч]]+1)-Апрель[[#This Row],[Показание счетчика моточасов спецоборудования на начало дня, м/ч]],\"\")","v":6},3,{"$f":"IF(Апрель[[#This Row],[Работа спецоборудования за день, м/ч]]=\"\",\"\",Апрель[[#This Row],[Работа спецоборудования за день, м/ч]]*$Z$2)","v":30},{"$f":"IFERROR(IF(VLOOKUP([Дата],S$2:U$3,3),IFERROR(IF(U33=\"\",Апрель[[#This Row],[Выдано топливо, литр]],Апрель[[#This Row],[Выдано топливо, литр]]+U33)+Апрель[[#This Row],[Остаток топлива в баке на начало дня, литр]]-Апрель[[#This Row],[Фактический расход топлива, литр]],\"\"),\"\"),\"\")","v":649},{"$f":"IFERROR(ROUND((Апрель[[#This Row],[Пройдено за день, км]]*0.01*$Y$2+Апрель[[#This Row],[Расход топлива на работу спецоборудования, литр]]),3)+X33,\"\")","v":102.42},{"$f":"IFERROR(IF(Апрель[[#Totals],[Выдано топливо, литр]]=0,0,(ROUND(Апрель[[#This Row],[Расход топлива по норме, литр]]/IF(DAY([Дата])<=18,$W$2,$W$3),0)))+Y33,)","v":102},{"$f":"IFERROR(IF(Апрель[[#Totals],[Выдано топливо, литр]]=0,0,(ROUND(Апрель[[#This Row],[Расход топлива по норме, литр]]/VLOOKUP([Дата],S$2:W$3,5),0)))+Y33,)","v":102},null,{"$f":"Апрель[[#This Row],[Дата]]","v":"2018-04-27"},null,null,100,null,null,null,null,{"$f":"Апрель[[#This Row],[Дата]]","v":"2018-04-27"}]
[{"$f":"IFERROR(DATEVALUE((COUNT($A$6:A33)+1)&$P$1&$I$4),\"\")","v":"2018-04-28"},"Ильичев Ю.Ф.",25210,25290,{"$f":"IFERROR(Апрель[[#This Row],[Показание одометра машины на конец дня, км]]-Апрель[[#This Row],[Показание одометра машины на начало дня, км]]+T34,\"\")","v":80},{"$f":"IF(Апрель[[#This Row],[Дата]]=\"\",\"\",SUMPRODUCT([1]Апрель!$E$4:$E$153*([1]Апрель!$G$4:$G$153=$O$4)*([1]Апрель!$D$4:$D$153=Апрель[[#This Row],[Дата]])))","v":120},{"$f":"IF(Апрель[[#This Row],[Дата]]=\"\",\"\",M33)","v":649},1438,1442,{"$f":"IFERROR(IF(W34=\"\",Апрель[[#This Row],[Показание счетчика моточасов  спецоборудования на конец дня, м/ч]],Апрель[[#This Row],[Показание счетчика моточасов  спецоборудования на конец дня, м/ч]]+1)-Апрель[[#This Row],[Показание счетчика моточасов спецоборудования на начало дня, м/ч]],\"\")","v":4},2,{"$f":"IF(Апрель[[#This Row],[Работа спецоборудования за день, м/ч]]=\"\",\"\",Апрель[[#This Row],[Работа спецоборудования за день, м/ч]]*$Z$2)","v":20},{"$f":"IFERROR(IF(VLOOKUP([Дата],S$2:U$3,3),IFERROR(IF(U34=\"\",Апрель[[#This Row],[Выдано топливо, литр]],Апрель[[#This Row],[Выдано топливо, литр]]+U34)+Апрель[[#This Row],[Остаток топлива в баке на начало дня, литр]]-Апрель[[#This Row],[Фактический расход топлива, литр]],\"\"),\"\"),\"\")","v":755},{"$f":"IFERROR(ROUND((Апрель[[#This Row],[Пройдено за день, км]]*0.01*$Y$2+Апрель[[#This Row],[Расход топлива на работу спецоборудования, литр]]),3)+X34,\"\")","v":54.08},{"$f":"IFERROR(IF(Апрель[[#Totals],[Выдано топливо, литр]]=0,0,(ROUND(Апрель[[#This Row],[Расход топлива по норме, литр]]/IF(DAY([Дата])<=18,$W$2,$W$3),0)))+Y34,)","v":54},{"$f":"IFERROR(IF(Апрель[[#Totals],[Выдано топливо, литр]]=0,0,(ROUND(Апрель[[#This Row],[Расход топлива по норме, литр]]/VLOOKUP([Дата],S$2:W$3,5),0)))+Y34,)","v":54},null,{"$f":"Апрель[[#This Row],[Дата]]","v":"2018-04-28"},null,null,40,null,null,null,null,{"$f":"Апрель[[#This Row],[Дата]]","v":"2018-04-28"}]
[{"$f":"IFERROR(DATEVALUE((COUNT($A$6:A34)+1)&$P$1&$I$4),\"\")","v":"2018-04-29"},"Ильичев Ю.Ф.",25290,25290,{"$f":"IFERROR(Апрель[[#This Row],[Показание одометра машины на конец дня, км]]-Апрель[[#This Row],[Показание одометра машины на начало дня, км]]+T35,\"\")","v":0},{"$f":"IF(Апрель[[#This Row],[Дата]]=\"\",\"\",SUMPRODUCT([1]Апрель!$E$4:$E$153*([1]Апрель!$G$4:$G$153=$O$4)*([1]Апрель!$D$4:$D$153=Апрель[[#This Row],[Дата]])))","v":0},{"$f":"IF(Апрель[[#This Row],[Дата]]=\"\",\"\",M34)","v":755},1442,1442,{"$f":"IFERROR(IF(W35=\"\",Апрель[[#This Row],[Показание счетчика моточасов  спецоборудования на конец дня, м/ч]],Апрель[[#This Row],[Показание счетчика моточасов  спецоборудования на конец дня, м/ч]]+1)-Апрель[[#This Row],[Показание счетчика моточасов спецоборудования на начало дня, м/ч]],\"\")","v":0},null,{"$f":"IF(Апрель[[#This Row],[Работа спецоборудования за день, м/ч]]=\"\",\"\",Апрель[[#This Row],[Работа спецоборудования за день, м/ч]]*$Z$2)","v":0},{"$f":"IFERROR(IF(VLOOKUP([Дата],S$2:U$3,3),IFERROR(IF(U35=\"\",Апрель[[#This Row],[Выдано топливо, литр]],Апрель[[#This Row],[Выдано топливо, литр]]+U35)+Апрель[[#This Row],[Остаток топлива в баке на начало дня, литр]]-Апрель[[#This Row],[Фактический расход топлива, литр]],\"\"),\"\"),\"\")","v":755},{"$f":"IFERROR(ROUND((Апрель[[#This Row],[Пройдено за день, км]]*0.01*$Y$2+Апрель[[#This Row],[Расход топлива на работу спецоборудования, литр]]),3)+X35,\"\")","v":0},{"$f":"IFERROR(IF(Апрель[[#Totals],[Выдано топливо, литр]]=0,0,(ROUND(Апрель[[#This Row],[Расход топлива по норме, литр]]/IF(DAY([Дата])<=18,$W$2,$W$3),0)))+Y35,)","v":0},{"$f":"IFERROR(IF(Апрель[[#Totals],[Выдано топливо, литр]]=0,0,(ROUND(Апрель[[#This Row],[Расход топлива по норме, литр]]/VLOOKUP([Дата],S$2:W$3,5),0)))+Y35,)","v":0},null,{"$f":"Апрель[[#This Row],[Дата]]","v":"2018-04-29"},null,null,null,null,null,null,null,{"$f":"Апрель[[#This Row],[Дата]]","v":"2018-04-29"}]
[{"$f":"IFERROR(DATEVALUE((COUNT($A$6:A35)+1)&$P$1&$I$4),\"\")","v":"2018-04-30"},"Ильичев Ю.Ф.",25290,25290,{"$f":"IFERROR(Апрель[[#This Row],[Показание одометра машины на конец дня, км]]-Апрель[[#This Row],[Показание одометра машины на начало дня, км]]+T36,\"\")","v":0},{"$f":"IF(Апрель[[#This Row],[Дата]]=\"\",\"\",SUMPRODUCT([1]Апрель!$E$4:$E$153*([1]Апрель!$G$4:$G$153=$O$4)*([1]Апрель!$D$4:$D$153=Апрель[[#This Row],[Дата]])))","v":0},{"$f":"IF(Апрель[[#This Row],[Дата]]=\"\",\"\",M35)","v":755},1442,1442,{"$f":"IFERROR(IF(W36=\"\",Апрель[[#This Row],[Показание счетчика моточасов  спецоборудования на конец дня, м/ч]],Апрель[[#This Row],[Показание счетчика моточасов  спецоборудования на конец дня, м/ч]]+1)-Апрель[[#This Row],[Показание счетчика моточасов спецоборудования на начало дня, м/ч]],\"\")","v":0},null,{"$f":"IF(Апрель[[#This Row],[Работа спецоборудования за день, м/ч]]=\"\",\"\",Апрель[[#This Row],[Работа спецоборудования за день, м/ч]]*$Z$2)","v":0},{"$f":"IFERROR(IF(VLOOKUP([Дата],S$2:U$3,3),IFERROR(IF(U36=\"\",Апрель[[#This Row],[Выдано топливо, литр]],Апрель[[#This Row],[Выдано топливо, литр]]+U36)+Апрель[[#This Row],[Остаток топлива в баке на начало дня, литр]]-Апрель[[#This Row],[Фактический расход топлива, литр]],\"\"),\"\"),\"\")","v":755},{"$f":"IFERROR(ROUND((Апрель[[#This Row],[Пройдено за день, км]]*0.01*$Y$2+Апрель[[#This Row],[Расход топлива на работу спецоборудования, литр]]),3)+X36,\"\")","v":0},{"$f":"IFERROR(IF(Апрель[[#Totals],[Выдано топливо, литр]]=0,0,(ROUND(Апрель[[#This Row],[Расход топлива по норме, литр]]/IF(DAY([Дата])<=18,$W$2,$W$3),0)))+Y36,)","v":0},{"$f":"IFERROR(IF(Апрель[[#Totals],[Выдано топливо, литр]]=0,0,(ROUND(Апрель[[#This Row],[Расход топлива по норме, литр]]/VLOOKUP([Дата],S$2:W$3,5),0)))+Y36,)","v":0},null,{"$f":"Апрель[[#This Row],[Дата]]","v":"2018-04-30"},null,null,null,null,null,null,null,{"$f":"Апрель[[#This Row],[Дата]]","v":"2018-04-30"}]
[{"$f":"IFERROR(DATEVALUE((COUNT($A$6:A36)+1)&$P$1&$I$4),\"\")","v":""},null,"",null,{"$f":"IFERROR(Апрель[[#This Row],[Показание одометра машины на конец дня, км]]-Апрель[[#This Row],[Показание одометра машины на начало дня, км]]+T37,\"\")","v":""},{"$f":"IF(Апрель[[#This Row],[Дата]]=\"\",\"\",SUMPRODUCT([1]Апрель!$E$4:$E$153*([1]Апрель!$G$4:$G$153=$O$4)*([1]Апрель!$D$4:$D$153=Апрель[[#This Row],[Дата]])))","v":""},{"$f":"IF(Апрель[[#This Row],[Дата]]=\"\",\"\",M36)","v":""},"",null,{"$f":"IFERROR(IF(W37=\"\",Апрель[[#This Row],[Показание счетчика моточасов  спецоборудования на конец дня, м/ч]],Апрель[[#This Row],[Показание счетчика моточасов  спецоборудования на конец дня, м/ч]]+1)-Апрель[[#This Row],[Показание счетчика моточасов спецоборудования на начало дня, м/ч]],\"\")","v":""},null,{"$f":"IF(Апрель[[#This Row],[Работа спецоборудования за день, м/ч]]=\"\",\"\",Апрель[[#This Row],[Работа спецоборудования за день, м/ч]]*$Z$2)","v":""},{"$f":"IFERROR(IF(VLOOKUP([Дата],S$2:U$3,3),IFERROR(IF(U37=\"\",Апрель[[#This Row],[Выдано топливо, литр]],Апрель[[#This Row],[Выдано топливо, литр]]+U37)+Апрель[[#This Row],[Остаток топлива в баке на начало дня, литр]]-Апрель[[#This Row],[Фактический расход топлива, литр]],\"\"),\"\"),\"\")","v":""},{"$f":"IFERROR(ROUND((Апрель[[#This Row],[Пройдено за день, км]]*0.01*$Y$2+Апрель[[#This Row],[Расход топлива на работу спецоборудования, литр]]),3)+X37,\"\")","v":""},{"$f":"IFERROR(IF(Апрель[[#Totals],[Выдано топливо, литр]]=0,0,(ROUND(Апрель[[#This Row],[Расход топлива по норме, литр]]/IF(DAY([Дата])<=18,$W$2,$W$3),0)))+Y37,)","v":0},{"$f":"IFERROR(IF(Апрель[[#Totals],[Выдано топливо, литр]]=0,0,(ROUND(Апрель[[#This Row],[Расход топлива по норме, литр]]/VLOOKUP([Дата],S$2:W$3,5),0)))+Y37,)","v":0},null,{"$f":"Апрель[[#This Row],[Дата]]","v":""},null,null,null,null,null,null,null,{"$f":"Апрель[[#This Row],[Дата]]","v":""}]
["Итог",null,null,null,{"$f":"SUBTOTAL(109,[Пройдено за день, км])","v":1690},{"$f":"SUBTOTAL(109,[Выдано топливо, литр])","v":980},null,null,null,{"$f":"SUBTOTAL(109,[Работа спецоборудования за день, м/ч])","v":104},{"$f":"SUBTOTAL(109,[Количество ходок])","v":52},{"$f":"SUBTOTAL(109,[Расход топлива на работу спецоборудования, литр])","v":520},null,{"$f":"SUBTOTAL(109,[Расход топлива по норме, литр])","v":1239.94},{"$f":"SUBTOTAL(109,[Фактический расход топлива, литр])","v":835},{"$f":"SUBTOTAL(109,[Отклонение от нормы (Перерасход(+), экономия(-)), литр])","v":1240},null,"1-я пол.",{"$f":"SUMIFS(S$7:S$37,INDIRECT(\"Апрель[Дата]\"),\">=\"&$S$2,INDIRECT(\"Апрель[Дата]\"),\"<=\"&$T$2)+IF(MONTH($T$2)<>MONTH($S$2),INDIRECT(TEXT($A$7-1,\"ММММ\")&\"!F38\")-SUM(INDIRECT(TEXT($A$7-1,\"ММММ\")&\"!V1:V2\")))","v":0},{"$f":"SUMIFS(T$7:T$37,INDIRECT(\"Апрель[Дата]\"),\">=\"&$S$2,INDIRECT(\"Апрель[Дата]\"),\"<=\"&$T$2)+IF(MONTH($T$2)<>MONTH($S$2),INDIRECT(TEXT($A$7-1,\"ММММ\")&\"!F38\")-SUM(INDIRECT(TEXT($A$7-1,\"ММММ\")&\"!V1:V2\")))","v":0},{"$f":"SUMIFS(U$7:U$37,INDIRECT(\"Апрель[Дата]\"),\">=\"&$S$2,INDIRECT(\"Апрель[Дата]\"),\"<=\"&$T$2)+IF(MONTH($T$2)<>MONTH($S$2),INDIRECT(TEXT($A$7-1,\"ММММ\")&\"!F38\")-SUM(INDIRECT(TEXT($A$7-1,\"ММММ\")&\"!V1:V2\")))","v":0},0,0,0,0,"1-я пол."]
[null,null,null,null,null,null,null,null,null,null,{"$f":"SUMIFS(K7:K37,A7:A37,\">=\"&$S$2,A7:A37,\"<=\"&$T$2)","v":0},null,null,null,null,null,null,"2-я пол.",{"$f":"SUMIFS(S$7:S$37,INDIRECT(\"Апрель[Дата]\"),\">=\"&$S$3,INDIRECT(\"Апрель[Дата]\"),\"<=\"&$T$3)+IF(MONTH($T$3)<>MONTH($S$3),INDIRECT(TEXT($A$7-1,\"ММММ\")&\"!F38\")-SUM(INDIRECT(TEXT($A$7-1,\"ММММ\")&\"!V1:V2\")))","v":0},{"$f":"SUMIFS(T$7:T$37,INDIRECT(\"Апрель[Дата]\"),\">=\"&$S$3,INDIRECT(\"Апрель[Дата]\"),\"<=\"&$T$3)+IF(MONTH($T$3)<>MONTH($S$3),INDIRECT(TEXT($A$7-1,\"ММММ\")&\"!F38\")-SUM(INDIRECT(TEXT($A$7-1,\"ММММ\")&\"!V1:V2\")))","v":0},260,0,0,0,0,"2-я пол."]
[null,null,null,null,null,null,null,null,null,null,{"$f":"SUMIFS(K7:K37,A7:A37,\">=\"&$S$3,A7:A37,\"<=\"&$T$3)","v":52}]

{"sheet":"ТС","index":4,"n_rows":33,"n_cols":25,"rows_kept":33,"cut":false,"hidden":false,"merged":[[0,15,2,24],[2,6,2,7],[2,11,2,12]]}
[null,null,null,null,null,null,"Зима :","01.11 - 31.03",null,null,null,"Зима :","01.11 - 31.03",null,null,"Расчет максимальной нормы расхода ДТ (литр/100км)"]
[null,null,null,null,null,null,"Лето:","01.04 - 30.10",null,null,null,"Лето:","01.04 - 30.10"]
[null,null,null,null,null,null,"доп.коэфф-т к норме",null,null,null,null,"доп.коэфф-т к норме"]
["№ п/п","Номер гос.регистрации / Заводской номер","Километраж, км","Спецоборудование, м/ч","Топливо, л","Базовая норма расхода на 100 км","Зима","Лето","Итога норма а/м ЗИМА","Итога норма а/м ЛЕТО","Базовая норма расхода на 1 мото/час","\"Зима\"","\"Лето\"","Итога норма а/м \"ЗИМА\"","Итога норма а/м \"ЛЕТО\"","Норма на 100 км, литров","движение с манипулятором","Тоннаж","Литры","На движение с грузом","Тоннаж1","К-т загрузки","ИТОГ","25% за работу в городе с населением свыше 3 млн. человек","10 % за работу зимой"]
[1,"Норма 1",23190,1306,350,42.6,10,0,{"$f":"F5*(100+G5)%","v":46.860000000000007},{"$f":"F5*(100+H5)%","v":42.6},5,10,0,{"$f":"K5*(100+L5)%","v":5.5},{"$f":"K5*(100+M5)%","v":5},32.200000000000003,{"$f":"R5*S5","v":2.9379999999999997},2.2599999999999998,1.3,{"$f":"U5*V5*S5","v":5.2},8,0.5,{"$f":"P5+Q5+T5","v":40.338000000000008},{"$f":"W5*25%+W5","v":50.422500000000014},{"$f":"W5*10%+X5","v":54.456300000000013}]
[2,"Норма 2",null,null,350,{"$f":"F5-F5*5%","v":40.47},10,0,{"$f":"F6*(100+G6)%","v":44.517000000000003},{"$f":"F6*(100+H6)%","v":40.47},{"$f":"K5-K5*5%","v":4.75},10,0,{"$f":"K6*(100+L6)%","v":5.2250000000000005},{"$f":"K6*(100+M6)%","v":4.75},32.200000000000003,{"$f":"R6*S6","v":2.9379999999999997},2.2599999999999998,1.3,{"$f":"U6*V6*S6","v":5.2},8,0.5,{"$f":"P6+Q6+T6","v":40.338000000000008},{"$f":"W6*25%+W6","v":50.422500000000014},{"$f":"W6*10%+X6","v":54.456300000000013}]
[3,"Норма 3",null,null,350,{"$f":"F5-F5*10%","v":38.340000000000003},10,0,{"$f":"F7*(100+G7)%","v":42.174000000000007},38.340000000000003,{"$f":"K5-K5*10%","v":4.5},10,0,{"$f":"K7*(100+L7)%","v":4.95},{"$f":"K7*(100+M7)%","v":4.5},32.200000000000003,{"$f":"R7*S7","v":2.9379999999999997},2.2599999999999998,1.3,{"$f":"U7*V7*S7","v":5.2},8,0.5,{"$f":"P7+Q7+T7","v":40.338000000000008},{"$f":"W7*25%+W7","v":50.422500000000014},{"$f":"W7*10%+X7","v":54.456300000000013}]
[4,"Переход 1",null,null,350,46.86,10,0,{"$f":"F8*(100+G8)%","v":51.546000000000006},{"$f":"F8*(100+H8)%","v":46.86},5.5,10,0,{"$f":"K8*(100+L8)%","v":6.0500000000000007},{"$f":"K8*(100+M8)%","v":5.5},null,{"$f":"R8*S8","v":0},null,null,{"$f":"U8*V8*S8","v":0},null,null,{"$f":"P8+Q8+T8","v":0},{"$f":"W8*25%+W8","v":0},{"$f":"W8*10%+X8","v":0}]
[5,"Переход 2",null,null,350,{"$f":"F8-F8*5%","v":44.516999999999996},10,0,{"$f":"F9*(100+G9)%","v":48.968699999999998},{"$f":"F9*(100+H9)%","v":44.516999999999996},{"$f":"K8-K8*5%","v":5.2249999999999996},10,0,{"$f":"K9*(100+L9)%","v":5.7475000000000005},{"$f":"K9*(100+M9)%","v":5.2249999999999996},null,{"$f":"R9*S9","v":0},null,null,{"$f":"U9*V9*S9","v":0},null,null,{"$f":"P9+Q9+T9","v":0},{"$f":"W9*25%+W9","v":0},{"$f":"W9*10%+X9","v":0}]
[6,"Переход 3",null,null,350,{"$f":"F8-F8*10%","v":42.173999999999999},10,0,{"$f":"F10*(100+G10)%","v":46.391400000000004},42.173999999999999,{"$f":"K8-K8*10%","v":4.95},10,0,{"$f":"K10*(100+L10)%","v":5.4450000000000003},{"$f":"K10*(100+M10)%","v":4.95},null,{"$f":"R10*S10","v":0},null,null,{"$f":"U10*V10*S10","v":0},null,null,{"$f":"P10+Q10+T10","v":0},{"$f":"W10*25%+W10","v":0},{"$f":"W10*10%+X10","v":0}]
[]
[null,"Зима"]
[null,"Лето"]
[]
[null,"Январь"]
[null,"Февраль"]
[null,"Март"]
[null,"Апрель"]
[null,"Май"]
[null,"Июнь"]
[null,"Июль"]
[null,"Август"]
[null,"Сентябрь"]
[null,"Октябрь"]
[null,"Ноябрь"]
[null,"Декабрь"]
[]
[null,"Норма 1"]
[null,"Норма 2"]
[null,"Норма 3"]
[null,"Переход 1"]
[null,"Переход 2"]
[null,"Переход 3"]

{"sheet":"Сотрудники","index":5,"n_rows":11,"n_cols":2,"rows_kept":11,"cut":false,"hidden":false,"merged":[]}
[null,"Ф.И.О."]
[null,"Зяблов А.А"]
[null,"Ильин А.Г."]
[null,"Ильин Е.Н."]
[null,"Ильичев Ю.Ф."]
[null,"Кобалян М.В."]
[null,"Лагутенко А.А."]
[null,"Малышев О.С."]
[null,"Никляев В.А."]
[null,"Сергеев Д.О."]
[null,"Ястребов Е.В."]